{"text_format":"1","workbook":"xlsx","n_sheets":6,"sheets":["Main","Trades","MM","Settlement","Setting","Sheet1"],"not_rendered":{"charts":0,"images":1,"macros":1,"external_links":0,"defined_names":31,"comments":2,"pivot_tables":0},"unopened":[],"bounds":{"document_bytes":16777216,"sheet_cells":100000,"rows_first":2000,"rows_last":500,"rows_between":2000,"halvings":0,"cell_chars":16384,"cell_head_chars":4096},"cells_cut":0,"cells_raw":0,"read":"whole","date_system":"1900"}

{"sheet":"Main","index":0,"n_rows":22,"n_cols":12,"rows_kept":22,"cut":false,"hidden":false,"merged":[[4,1,4,11],[9,5,9,6],[10,5,10,6],[21,5,21,6]]}
[]
[]
[]
[]
[null,"DEUTSCHE UPLOAD"]
[]
[null,null,null,null,null,null,null,null,null,null,null,"Note:"]
[null,null,"Report Details:"]
[null,null,null,null,null,null,null,null,null,null,null,"1. Press Login to connect to database"]
[null,null,null,null,"Company Name:","NOMURA ASSET MANAGEMENT MALAYSIA SDN BHD",null,null,null,null,null,"2. Select Fund Group Code and Value Date, then click on the button Import to import data."]
[null,null,null,null,"Company ID:","NM",null,null,null,null,null,"3. Click on Generate CSV button to export the selected sheet(s) to CSV format."]
[null,null,null,null,null,null,null,null,null,null,null,"4. For NEW Portfolio Code, NEW Broker and NEW Money Market Placement Bank setting, click on Setting button."]
[null,null,null,null,"Fund Group:","i-CASH"]
[null,null,null,null,"Value Date:","2021-02-04"]
[null,null,null,null,"Office:","Back Office"]
[]
[null,null,null,null,null,"Sheet Name","Export","Range"]
[null,null,null,null,"Export Files:","Trades","Yes","D2:CE"]
[null,null,null,null,null,"MM","Yes","C2:CB"]
[null,null,null,null,null,"Settlement","Yes","A2:FS"]
[]
[null,null,null,null,"Export Path:","D:\\Nomura\\Deustche Upload"]

{"sheet":"Trades","index":1,"n_rows":2,"n_cols":83,"rows_kept":2,"cut":false,"hidden":false,"merged":[]}
[null,null,null,null,null,{"$f":"VLOOKUP(A1,OthTradeSetting,3,0) & RIGHT(AE1,2) &CHOOSE(MID(AE1,5,2),\"JAN\",\"FEB\",\"MAR\",\"APR\",\"MAY\",\"JUN\",\"JUL\",\"AUG\",\"SEP\",\"OCT\",\"NOV\",\"DEC\") & \"-\" & ROW()-2","v":{"$error":"#N/A"}},null,null,null,null,null,{"$f":"IF(OR(C1=\"SP\",C1=\"SS\"),VLOOKUP(A1,OthTradeSetting,2,0),\"\")","v":""},{"$f":"IF(H1<>\"C\",VLOOKUP(A1,PortfolioCodeRange,2,0),\"\")","v":{"$error":"#N/A"}},null,null,null,null,null,null,{"$f":"IF(OR(C1=\"SP\",C1=\"SS\"),VLOOKUP(B1&BP1,CounterPartyBICRange,2,0),\"\")","v":""},null,{"$f":"IF(OR(C1=\"SP\",C1=\"SS\"),VLOOKUP(B1&BP1,CounterPartyBICRange,2,0),\"\")","v":""},{"$f":"IF(OR(C1=\"SP\",C1=\"SS\"),VLOOKUP(B1&BP1,CounterPartyBICRange,2,0),\"\")","v":""},null,null,null,null,null,null,null,null,null,null,null,null,null,null,null,null,null,null,null,null,null,null,null,null,null,null,null,null,null,null,null,null,null,null,null,null,null,null,null,null,null,null,{"$f":"IF(OR(C1=\"SP\",C1=\"SS\"),VLOOKUP(BP1,PSET.Data,2,0),\"\")","v":""}]
["qFundCode","qCPCode","qTrnCode","Receiver BIC","Action","Client Reference","Previous Reference No.","Trade Type","Transaction Type","Instrument Type","Blank Column","Securities Account no","FA Portfolio Code","Security Identifier Type","Local_Security_Code","ISIN","Security Description","Blank Column","FA Broker Identifier Type","FA Broker Code","FA Counterparty Identifier Type","FA Counterparty Code","Counterparty BIC","Counterparty Description","Counterparty Account","Buyer/Seller BIC","Buyer/Seller Description","Buyer/Seller Account","Blank Column","Blank Column","Trade Date","Settlement Date"," Quantity ","Deal Price CCY","Deal Price","Gross Amount","Accrued Interest","Blank Column","Blank Column","Blank Column","Stamp Duty","Clearing Fee","Other Fee","Broker Commission","Sales Tax","Levy","GST Brokerage","GST Clearing","GST Scanning","GST Transaction","CDS Fees","CSE Fees","GOVT Cess","SEC Cess","SCCP","Bought Accrued Interest","AR-BIR CB Tax","Prepaid Tax Discount","Prepaid Tax Premium","Witholding Tax on SDA ACC Int","Blank Column","Blank Column","Blank Column","Blank Column","Blank Column","PSET","PSAFE","Settlement CCY","Settlement Amount","Blank Column","Blank Column","Narrative Line 1","Narrative Line 2","Narrative Line 3","Narrative Line 4","Registration Narrative","Blank Column","Blank Column","Blank Column","Blank Column","Blank Column","Blank Column","End_of_Line_Indicator"]

{"sheet":"MM","index":2,"n_rows":3,"n_cols":80,"rows_kept":3,"cut":false,"hidden":false,"merged":[]}
[null,null,null,null,null,null,null,null,null,null,null,{"$f":"VLOOKUP(A1,PortfolioCodeRange,2,0)","v":{"$error":"#N/A"}},null,null,null,null,null,null,null,{"$f":"MM_FABrokerIdenType","v":"CLIENT_BROKER_CODE"},{"$f":"VLOOKUP(B1,CashCPRange,5,0)","v":{"$error":"#N/A"}},{"$f":"MM_FACPIdenType","v":"CLIENT_BROKER_CODE"},{"$f":"VLOOKUP(B1,CashCPRange,4,0)","v":{"$error":"#N/A"}}]
["qFundCode","qCPCode","Receiver BIC","Action","Client Reference","Previous Reference No.","Trade Type","Transaction Type","Instrument Type","Blank Column","Portfolio Group","FA Portfolio Code","Security Identifier Type","Local_Security_Code","ISIN","Security Description","Bank code","Blank Column","Blank Column","FA Broker Identifier Type","FA Broker Code","FA Counterparty Identifier Type","FA Counterparty Code","Blank Column","Blank Column","Trade Date","Settlement Date","Maturity Date","Quantity / Principal","Deal Price CCY","Deal Price","Gross Amount","Spot Rate","Forward Rate","BUY_CRNCY","SAL_CRNCY","BUY_AMT","SAL_AMT","Interest Rate","Interest Payment Frequency","Blank Column","Shariah Deposit","Interest type","Blank Column","BROKERAGE COMMISION","FUND ISSUE / REDEMPTION CHARGES","WITHOLDING TAX","DISTRIBUTION FEES PAYABLE","LOAD CHARGES","Equalization","Earn Resign (Paid to company)","Earnings Company - Resign (To Member)","COM-TRANS FROM OTHER FUND","COM-TRANS TO OTHER FUND","Donation","Switching In Fee","UNIT PREMIUM","Premium","Security transaction tax","Transaction Fee","Stamp duty","STP CHARGES ","Clearing Fee","Expense Fee","VAT","Retained Earnings","Capital gain/loss","Other Fee","Bank Charges","Blank Column","Blank Column","Blank Column","Blank Column","Exchange","Settlement CCY","Settlement Amount","Blank Column","Narrative Line 1 ","Narrative Line 2","End_of_Line_Indicator"]
["i-CASH","CMI","DEUTMYKLXXX","NEWM","CSH210200111",null,null,1,"T",null,"MY_NOMURA",0,null,null,null,null,null,null,null,"CLIENT_BROKER_CODE",0,"CLIENT_BROKER_CODE",0,null,null,20210204,20210204,20210208,2432000,"MYR",null,2432000,null,null,null,null,null,null,1.7500000000000002,null,null,null,null,null,null,null,null,null,null,null,null,null,null,null,null,null,null,null,null,null,null,null,null,null,null,null,null,null,null,null,null,null,null,null,null,null,null,null,null,"End"]

{"sheet":"Settlement","index":3,"n_rows":5,"n_cols":26,"rows_kept":5,"cut":false,"hidden":false,"merged":[]}
[]
["Order Party Acc","Order Party Acc CCY","Charges Acc","Charge Acc CCY","Tran CCY","Tran Mode","Tran Amt","Value Date / Execution Date (ddmmyyyy)","Bulk Ref","Charges Inst","CP Acc No","CP Name",null,null,"CP Bank SWIFT Code","Tran Details Line 1","Tran Details Line 2","Tran Details Line 3","Constant Code","Constant Code",null,null,null,null,null,"Email"]
[4000519000,"MYR",4000519000,"MYR","MYR","REN",2660123.89,4022021,"REF",15,"MY88BNMA1554020432","CIMB ISLAMIC",null,null,"N/A","B000018765-1",null,null,"CONSTANT CODE REN","CONSTANT CODE GIRO",null,null,null,null,null,"email"]
[4000519000,"MYR",4000519000,"MYR","MYR","REN",2432000,4022021,"REF",15,"MY88BNMA1554020432","CIMB ISLAMIC",null,null,"N/A","AUTO SETTLEMENT ",null,null,"CONSTANT CODE REN","CONSTANT CODE GIRO",null,null,null,null,null,"email"]
[4000519000,"MYR",4000519000,"MYR","MYR","REN",228718.46,4022021,"REF",15,null,"KL;CASHDUMMY",null,null,"N/A","EOD auto settlement",null,null,"CONSTANT CODE REN","CONSTANT CODE GIRO",null,null,null,null,null,"email"]

{"sheet":"Setting","index":4,"n_rows":1010,"n_cols":36,"rows_kept":1010,"cut":false,"hidden":false,"merged":[[1,4,1,5]]}
[null,null,null,null,"TRADE SETTING",null,null,null,"PORTFOLIO CODE","PORTFOLIO CODE END",null,"MM CP SETTING",null,null,null,"MM CP SETTING END",null,"TRADE CP SETTING",null,null,"TRADE CP SETTING END",null,"FUND GROUP SDF","FUND GROUP SDF END",null,null,null,null,null,"PSET TRADE SETTING","PSET TRADE SETTING END",null,"COUNTERPARTY BIC",null,null,"COUNTERPARTY BIC END"]
[null,null,null,null,"GENERAL TRADE/MM SETTING",null,null,null,"PORTFOLIO CODE",null,null,"MM CP SETTING",null,null,null,null,null,"FA CP/BROKER CODE",null,null,null,null,"FUND GROUP SDF",null,null,"TRADE SETTING BY PORTFOLIO",null,null,null,"PSET TRADE SETTING",null,null,"Counterparty BIC"]
[null,null,null,null,"No.","Field Name","Default Value",null,"OnePortfolio Fund Code","FA Portfolio Code",null,"CP Code","CP Name","Account No.","Counterparty","Broker",null,"Trade CP Code","CP Name","FA Broker Code","FA Counterparty Code",null,"Fund Group Code","Fund Group Name",null,"Fund Code","Securities Acc No","Client Reference",null,"Currency Code","PSET",null,"qCPCode","Currency Code","LookUp","COUNTERPARTY BIC"]
[null,null,null,null,1,"Company Local Currency","MYR",null,"i-CASH",null,null,"000","NOMURA SECURITIES",null,null,null,null,"000","NOMURA SECURITIES",null,null,null,"AJC-MASHAREQ","ALJAZIRA JAPANESE EQUITY FUND",null,null,null,null,null,"AED",null,null,null,null,{"$f":"IF(OR(AG4=\"\",AH4=\"\"),\"\",AG4&AH4)","v":""}]
[null,null,null,null,2,null,null,null,"i-MONEY",null,null,"007","NOMURA SECURITIES",null,null,null,null,"007","NOMURA SECURITIES",null,null,null,"ALLFUNDS","ALLFUNDS",null,null,null,null,null,"ANG",null,null,null,null,""]
[null,"Legends",null,null,3,null,null,null,"NGDBF",null,null,"0BI","NOMURA INTERNATIONAL PLC",null,null,null,null,"0BI","NOMURA INTERNATIONAL PLC",null,null,null,"BNM-ICLIF","IFM ICLIF SHARIAH EQUITY NOMURA-I",null,null,null,null,null,"ARS",null,null,null,null,""]
[null,null,"User Key In",null,4,null,null,null,"NGHC",null,null,"0LX","NOMURA BANK LUXEMBOURG",null,null,null,null,"0LX","NOMURA BANK LUXEMBOURG",null,null,null,"BNM-ICLIF-FI2","IFM ICLIF CORP BOND NOMURA",null,null,null,null,null,"ATS",null,null,null,null,""]
[null,null,"Downloaded Data",null,5,null,null,null,"NGSSGF",null,null,"0TB","NOMURA TRUST & BANKING",null,null,null,null,"0TB","NOMURA TRUST & BANKING",null,null,null,"BNM-INCEIF","IFM INCEIF SHARIAH EQUITY NOMURA-I",null,null,null,null,null,"AUD",null,null,null,null,""]
[null,null,null,null,null,"Trades Setting",null,null,"NRBF1",null,null,"AAB","ABN AMRO BANK",null,null,null,null,"AAB","ABN AMRO BANK",null,null,null,"BNM-INCEIF-FI","IFM INCEIF SUKUK NOMURA-I",null,null,null,null,null,"BAM",null,null,null,null,""]
[null,"Go To",null,null,1,"Receiver BIC","DEUTMYKLXXX",null,"NRBF2",null,null,"AAM","AAM",null,null,null,null,"AAM","AAM",null,null,null,"BNM-MEDF-FI","IFM MEDF CORP BOND NOMURA",null,null,null,null,null,"BDT",null,null,null,null,""]
[null,null,"General Trade Setting",null,2,"Security Identifier Code (Local)","MY_REUTERS",null,null,null,null,"AB","A.B. ASESORES BURSATILES",null,null,null,null,"AB","A.B. ASESORES BURSATILES",null,null,null,"BNMMF","IFM MEDF CONV EQUITY NOMURA",null,null,null,null,null,"BEF",null,null,null,null,""]
[null,null,null,null,3,"Security Identifier Code (Foreign)","MY_REUTERS",null,null,null,null,"ABA","ABN AMRO CLEARING BK NV",null,null,null,null,"ABA","ABN AMRO CLEARING BK NV",null,null,null,"BNM-NTF","IFM NTF CONV EQUITY NOMURA",null,null,null,null,null,"BGN",null,null,null,null,""]
[null,null,"Portfolio Code Setting",null,4,"FA Broker Identifier Type","BIC_CODE",null,null,null,null,"ABC","AGRICULTURAL BANK OF CHINA",null,null,null,null,"ABC","AGRICULTURAL BANK OF CHINA",null,null,null,"BNM-NTF-FI","IFM NTF CORP BOND NOMURA",null,null,null,null,null,"BHD",null,null,null,null,""]
[null,null,null,null,5,"FA Counterparty Identifier Type","BIC_CODE",null,null,null,null,"ABE","ABEL NOSER",null,null,null,null,"ABE","ABEL NOSER",null,null,null,"CGC","CREDIT GUARANTEE CORPORATION MALAYSIA BERHAD",null,null,null,null,null,"BND",null,null,null,null,""]
[null,null,"MM CP Setting",null,6,null,null,null,null,null,null,"ABG","ABG SECURITIES",null,null,null,null,"ABG","ABG SECURITIES",null,null,null,"EPF","EMPLOYEES PROVIDENT FUND BOARD (NOMURA)",null,null,null,null,null,"BRL",null,null,null,null,""]
[null,null,null,null,7,null,null,null,null,null,null,"ABK","AMBANK",null,null,null,null,"ABK","AMBANK",null,null,null,"EPF-ASEAN","EPF ASEAN 40 EX MALAYSIA EQUITY",null,null,null,null,null,"BSD",null,null,null,null,""]
[null,null,"Trade CP Setting",null,8,null,null,null,null,null,null,"ABL","ABSA BANK LIMITED",null,null,null,null,"ABL","ABSA BANK LIMITED",null,null,null,"EPF-ASIA","EPF-ASIA EX JAPAN EX MALAYSIA EQUITY",null,null,null,null,null,"BWP",null,null,null,null,""]
[null,null,null,null,9,null,null,null,null,null,null,"ABN","ABN AMRO",null,null,null,null,"ABN","ABN AMRO",null,null,null,"EPF-DMSUKUK","EMPLOYEES PROVIDENT FUND BOARD (NIAM-FI RR) - IC",null,null,null,null,null,"CAD",null,null,null,null,""]
[null,null,"Trade Setting By Portfolio",null,10,null,null,null,null,null,null,"ABS","ABRAHAM & SONS",null,null,null,null,"ABS","ABRAHAM & SONS",null,null,null,"EPF-GLOBAL","NOMURA FOR EPF GLOBAL EQUITY FUND",null,null,null,null,null,"CHF",null,null,null,null,""]
[null,null,null,null,11,null,null,null,null,null,null,"ACA","ACADEMY SECURITIES, INC.",null,null,null,null,"ACA","ACADEMY SECURITIES, INC.",null,null,null,"EPFMSIANFI","EMPLOYEES PROVIDENT FUND BOARD (NAM-FI RR)",null,null,null,null,null,"CLP",null,null,null,null,""]
[null,null,"PSET Trade Setting",null,12,null,null,null,null,null,null,"ACB","ALLIANCE BANK",null,null,null,null,"ACB","ALLIANCE BANK",null,null,null,"EPF-NIAMEQ","EMPLOYEES PROVIDENT FUND BOARD (NIAM EQ)",null,null,null,null,null,"CNY",null,null,null,null,{"$f":"IF(OR(AG21=\"\",AH21=\"\"),\"\",AG21&AH21)","v":""}]
[null,null,null,null,13,null,null,null,null,null,null,"ACE","ACE SEC",null,null,null,null,"ACE","ACE SEC",null,null,null,"EPF-SHASIA","EPF SHARIAH ASIA NOMURA ISLAMIC",null,null,null,null,null,"COP",null,null,null,null,""]
[null,null,null,null,14,null,null,null,null,null,null,"ACG","A.C. GOODE",null,null,null,null,"ACG","A.C. GOODE",null,null,null,"EPF-SHWORLD","EPF SHARIAH WORLD NOMURA ISLAMIC",null,null,null,null,null,"CYP",null,null,null,null,""]
[null,null,null,null,15,null,null,null,null,null,null,"ACL","AXIS CAPITAL LIMITED",null,null,null,null,"ACL","AXIS CAPITAL LIMITED",null,null,null,"i-CASH","NOMURA i-CASH FUND",null,null,null,null,null,"CZK",null,null,null,null,""]
[null,null,null,null,null,"Money Market Setting",null,null,null,null,null,"ADC","ANDREW DAVIDSON & CO.,INC.",null,null,null,null,"ADC","ANDREW DAVIDSON & CO.,INC.",null,null,null,"i-MONEY","NOMURA i-INCOME FUND",null,null,null,null,null,"DEM",null,null,null,null,""]
[null,null,null,null,1,"Receiver BIC","DEUTMYKLXXX",null,null,null,null,"ADV","ADVEST DEVELOPMENT & FINANC",null,null,null,null,"ADV","ADVEST DEVELOPMENT & FINANC",null,null,null,"KWAP","KUMPULAN WANG PERSARAAN (DIPERBADANKAN) (NOMURA)",null,null,null,null,null,"DKK",null,null,null,null,""]
[null,null,null,null,2,"Portfolio Group","MY_NOMURA",null,null,null,null,"AEL","ASIA EQUITY LIMITED. HONG",null,null,null,null,"AEL","ASIA EQUITY LIMITED. HONG",null,null,null,"KWAP-NIAM","KWAP (NOMURA ISLAMIC AM)",null,null,null,null,null,"DOP",null,null,null,null,""]
[null,null,null,null,3,"FA Broker Identifier Type","CLIENT_BROKER_CODE",null,null,null,null,"AFC","ALBERT FRIED AND COMPANY",null,null,null,null,"AFC","ALBERT FRIED AND COMPANY",null,null,null,"LAB-NGBF","LABUAN RE - NOMURA-GLOBAL BALANCED FUND",null,null,null,null,null,"DZD",null,null,null,null,""]
[null,null,null,null,4,"FA Counterparty Identifier Type","CLIENT_BROKER_CODE",null,null,null,null,"AFF","AFFIN SECS SDN BHD",null,null,null,null,"AFF","AFFIN SECS SDN BHD",null,null,null,"MHILJP-EQ","BHT05 (MT HATTON INVT LTD JP PORTFOLIO)",null,null,null,null,null,"EEK",null,null,null,null,""]
[null,null,null,null,5,null,null,null,null,null,null,"AFI","AFIN SECURITIES INTL",null,null,null,null,"AFI","AFIN SECURITIES INTL",null,null,null,"NGDBF","DTMB FOR NOMURA GLOBAL DYNAMIC BOND FUND",null,null,null,null,null,"EGP",null,null,null,null,""]
[null,null,null,null,6,null,null,null,null,null,null,"AGE","A.G.,EDWARD & SONS,INC",null,null,null,null,"AGE","A.G.,EDWARD & SONS,INC",null,null,null,"NGHC","CCTB-NOMURA GLOBAL HIGH CONVICTION FUND",null,null,null,null,null,"ESP",null,null,null,null,""]
[null,null,null,null,7,null,null,null,null,null,null,"AGF","AMERICAN GENERAL FINANCE",null,null,null,null,"AGF","AMERICAN GENERAL FINANCE",null,null,null,"NGSSGF","NOMURA GLOBAL SHARIAH STRATEGIC GROWTH FUND",null,null,null,null,null,"EUR",null,null,null,null,""]
[null,null,null,null,8,null,null,null,null,null,null,"AGL","AVIATE GLOBAL LLP",null,null,null,null,"AGL","AVIATE GLOBAL LLP",null,null,null,"NRBF1","CCTB-NOMURA RINGGIT BOND FUND1",null,null,null,null,null,"FIM",null,null,null,null,""]
[null,null,null,null,9,null,null,null,null,null,null,"AGO","AGORA COR DE TITUL E VAL MO",null,null,null,null,"AGO","AGORA COR DE TITUL E VAL MO",null,null,null,"NRBF2","DTMB FOR NOMURA RINGGIT BOND FUND 2",null,null,null,null,null,"FJD",null,null,null,null,""]
[null,null,null,null,10,null,null,null,null,null,null,"AHG","ABN AMRO HOARE GOVET",null,null,null,null,"AHG","ABN AMRO HOARE GOVET",null,null,null,"PET-ACF","PETRONAS EFM (ACF-NOMURA)",null,null,null,null,null,"FRF",null,null,null,null,""]
[null,null,null,null,11,null,null,null,null,null,null,"AHI","AFFIN HWANG INVESTMENT BANK",null,null,null,null,"AHI","AFFIN HWANG INVESTMENT BANK",null,null,null,"PET-FI","PETRONAS EFM (NOMURA-FI) ",null,null,null,null,null,"GBP",null,null,null,null,""]
[null,null,null,null,12,null,null,null,null,null,null,"AIG","BANQUE AIG",null,null,null,null,"AIG","BANQUE AIG",null,null,null,"RHBI-GDMF","RHB ISLAMIC GLOBAL DEVELOPED MARKETS FUND",null,null,null,null,null,"GHC",null,null,null,null,""]
[null,null,null,null,13,null,null,null,null,null,null,"AIS","AMBANK ISLAMIC BERHAD",null,null,null,null,"AIS","AMBANK ISLAMIC BERHAD",null,null,null,"SLMAB-LFNP","SUN LIFE (LIFE FUND NON PAR-NA)",null,null,null,null,null,"GHS",null,null,null,null,""]
[null,null,null,null,14,null,null,null,null,null,null,"AIZ","AIZAWA SEC.",null,null,null,null,"AIZ","AIZAWA SEC.",null,null,null,"SLMAB-LNUL","SUN LIFE (LNUL-NA)",null,null,null,null,null,"GRD",null,null,null,null,""]
[null,null,null,null,15,null,null,null,null,null,null,"AKN","ORIX SECURITIES CO.,LTD.",null,null,null,null,"AKN","ORIX SECURITIES CO.,LTD.",null,null,null,"SLMTB-FTFPA","SUN LIFE TAKAFUL(FTFPA)",null,null,null,null,null,"GTQ",null,null,null,null,""]
[null,null,null,null,null,null,null,null,null,null,null,"AKS","AK SECURITIES",null,null,null,null,"AKS","AK SECURITIES",null,null,null,"SOCSO","PERTUBUHAN KESELAMATAN SOCIAL(SOCSO)",null,null,null,null,null,"HKD",null,null,null,null,""]
[null,null,null,null,null,null,null,null,null,null,null,"ALB","ALFRED BERG",null,null,null,null,"ALB","ALFRED BERG",null,null,null,"TNB-RBTF","TNB RETIREMENT BENEFIT TRUST FUND",null,null,null,null,null,"HNL",null,null,null,null,""]
[null,null,null,null,null,null,null,null,null,null,null,"ALC","ALEXANDERS LAING & CRUICK",null,null,null,null,"ALC","ALEXANDERS LAING & CRUICK",null,null,null,"UJSB-EQ","UJSB-EQ",null,null,null,null,null,"HRK",null,null,null,null,""]
[null,null,null,null,null,null,null,null,null,null,null,"ALI","ALLIANCE ISLAMIC BANK",null,null,null,null,"ALI","ALLIANCE ISLAMIC BANK",null,null,null,"UJSB-EQ1","URUSHARTA JAMAAH SDN BHD (NOMURA 1)",null,null,null,null,null,"HUF",null,null,null,null,""]
[null,null,null,null,null,null,null,null,null,null,null,"ALL","ALLEN & COMPANY LLC",null,null,null,null,"ALL","ALLEN & COMPANY LLC",null,null,null,"UJSB-EQ2","URUSHARTA JAMAAH SDN BHD (NOMURA 2)",null,null,null,null,null,"IDR",null,null,null,null,""]
[null,null,null,null,null,null,null,null,null,null,null,"ALV","ALLIANCE INVESTMENT BANK",null,null,null,null,"ALV","ALLIANCE INVESTMENT BANK",null,null,null,"WB-EQ","WARBA BANK K.S.C",null,null,null,null,null,"IEP",null,null,null,null,""]
[null,null,null,null,null,null,null,null,null,null,null,"AMB","ARAB MALAYSIAN BANK BHD",null,null,null,null,"AMB","ARAB MALAYSIAN BANK BHD",null,null,null,null,null,null,null,null,null,null,"ILS",null,null,null,null,""]
[null,null,null,null,null,null,null,null,null,null,null,"AMI","ALPHA MANAGEMENT INC",null,null,null,null,"AMI","ALPHA MANAGEMENT INC",null,null,null,null,null,null,null,null,null,null,"INR",null,null,null,null,""]
[null,null,null,null,null,null,null,null,null,null,null,"AMP","AMHERST PIERPOINT",null,null,null,null,"AMP","AMHERST PIERPOINT",null,null,null,null,null,null,null,null,null,null,"IQD",null,null,null,null,""]
[null,null,null,null,null,null,null,null,null,null,null,"AMS","ANZ MCCAUGHAN SECURITIES",null,null,null,null,"AMS","ANZ MCCAUGHAN SECURITIES",null,null,null,null,null,null,null,null,null,null,"IRR",null,null,null,null,""]
[null,null,null,null,null,null,null,null,null,null,null,"AMT","AMBIT",null,null,null,null,"AMT","AMBIT",null,null,null,null,null,null,null,null,null,null,"ISK",null,null,null,null,""]
[null,null,null,null,null,null,null,null,null,null,null,"ANS","ANZ SECURITIES",null,null,null,null,"ANS","ANZ SECURITIES",null,null,null,null,null,null,null,null,null,null,"ITL",null,null,null,null,""]
[null,null,null,null,null,null,null,null,null,null,null,"ANZ","ANZ BANKING GROUP",null,null,null,null,"ANZ","ANZ BANKING GROUP",null,null,null,null,null,null,null,null,null,null,"JMD",null,null,null,null,""]
[null,null,null,null,null,null,null,null,null,null,null,"AOZ","AOZORA BANK",null,null,null,null,"AOZ","AOZORA BANK",null,null,null,null,null,null,null,null,null,null,"JOD",null,null,null,null,""]
[null,null,null,null,null,null,null,null,null,null,null,"APC","ASSET PLUS SECURITIES CO",null,null,null,null,"APC","ASSET PLUS SECURITIES CO",null,null,null,null,null,null,null,null,null,null,"JPY",null,null,null,null,""]
[null,null,null,null,null,null,null,null,null,null,null,"AQA","AQUA SECURITIES",null,null,null,null,"AQA","AQUA SECURITIES",null,null,null,null,null,null,null,null,null,null,"KES",null,null,null,null,""]
[null,null,null,null,null,null,null,null,null,null,null,"ARB","AUERBACH GRAYSON",null,null,null,null,"ARB","AUERBACH GRAYSON",null,null,null,null,null,null,null,null,null,null,"KRW",null,null,null,null,""]
[null,null,null,null,null,null,null,null,null,null,null,"ARD","ARDENT FINANCIAL LIMITED",null,null,null,null,"ARD","ARDENT FINANCIAL LIMITED",null,null,null,null,null,null,null,null,null,null,"KWD",null,null,null,null,""]
[null,null,null,null,null,null,null,null,null,null,null,"ARK","ARK SECURITIES",null,null,null,null,"ARK","ARK SECURITIES",null,null,null,null,null,null,null,null,null,null,"KZT",null,null,null,null,""]
[null,null,null,null,null,null,null,null,null,null,null,"ARQ","ARQAAM SECURITIES LLC",null,null,null,null,"ARQ","ARQAAM SECURITIES LLC",null,null,null,null,null,null,null,null,null,null,"LKR",null,null,null,null,""]
[null,null,null,null,null,null,null,null,null,null,null,"ARS","AMINVESTMENT BANK BHD",null,null,null,null,"ARS","AMINVESTMENT BANK BHD",null,null,null,null,null,null,null,null,null,null,"LTL",null,null,null,null,""]
[null,null,null,null,null,null,null,null,null,null,null,"AS","BANC OF AMERICA SECURITIES,",null,null,null,null,"AS","BANC OF AMERICA SECURITIES,",null,null,null,null,null,null,null,null,null,null,"LUF",null,null,null,null,""]
[null,null,null,null,null,null,null,null,null,null,null,"ASA","ASAHI SECURITIES",null,null,null,null,"ASA","ASAHI SECURITIES",null,null,null,null,null,null,null,null,null,null,"LVL",null,null,null,null,""]
[null,null,null,null,null,null,null,null,null,null,null,"ASE","MAYBANK INVESTMENT BANK BER",null,null,null,null,"ASE","MAYBANK INVESTMENT BANK BER",null,null,null,null,null,null,null,null,null,null,"LYD",null,null,null,null,""]
[null,null,null,null,null,null,null,null,null,null,null,"ASL","AVIAN SECURITIES,LLC",null,null,null,null,"ASL","AVIAN SECURITIES,LLC",null,null,null,null,null,null,null,null,null,null,"MAD",null,null,null,null,""]
[null,null,null,null,null,null,null,null,null,null,null,"AT","ATTIMO SPA",null,null,null,null,"AT","ATTIMO SPA",null,null,null,null,null,null,null,null,null,null,"MMK",null,null,null,null,""]
[null,null,null,null,null,null,null,null,null,null,null,"AUR","AUREL BGC",null,null,null,null,"AUR","AUREL BGC",null,null,null,null,null,null,null,null,null,null,"MTL",null,null,null,null,""]
[null,null,null,null,null,null,null,null,null,null,null,"AUS","AUSTOCK SECURITES",null,null,null,null,"AUS","AUSTOCK SECURITES",null,null,null,null,null,null,null,null,null,null,"MUR",null,null,null,null,""]
[null,null,null,null,null,null,null,null,null,null,null,"AUT","AUTONOMOUS LLP",null,null,null,null,"AUT","AUTONOMOUS LLP",null,null,null,null,null,null,null,null,null,null,"MXN",null,null,null,null,{"$f":"IF(OR(AG69=\"\",AH69=\"\"),\"\",AG69&AH69)","v":""}]
[null,null,null,null,null,null,null,null,null,null,null,"AVO","AVONDALE PARTNERS",null,null,null,null,"AVO","AVONDALE PARTNERS",null,null,null,null,null,null,null,null,null,null,"MXP",null,null,null,null,""]
[null,null,null,null,null,null,null,null,null,null,null,"AXE","AXES  SECURITIES",null,null,null,null,"AXE","AXES  SECURITIES",null,null,null,null,null,null,null,null,null,null,"MYR",null,null,null,null,""]
[null,null,null,null,null,null,null,null,null,null,null,"BAA","BANC AMERICA SEC MONTOGOM",null,null,null,null,"BAA","BANC AMERICA SEC MONTOGOM",null,null,null,null,null,null,null,null,null,null,"NGN",null,null,null,null,""]
[null,null,null,null,null,null,null,null,null,null,null,"BAB","BARCLAYS TRUST",null,null,null,null,"BAB","BARCLAYS TRUST",null,null,null,null,null,null,null,null,null,null,"NLG",null,null,null,null,""]
[null,null,null,null,null,null,null,null,null,null,null,"BAJ","BARNARD JACOBS MELLET LONDO",null,null,null,null,"BAJ","BARNARD JACOBS MELLET LONDO",null,null,null,null,null,null,null,null,null,null,"NOK",null,null,null,null,""]
[null,null,null,null,null,null,null,null,null,null,null,"BAM","BANC OF AMERICA SECURITIES",null,null,null,null,"BAM","BANC OF AMERICA SECURITIES",null,null,null,null,null,null,null,null,null,null,"NPR",null,null,null,null,""]
[null,null,null,null,null,null,null,null,null,null,null,"BAN","BANCO ITAU S/A(HEAD OFFIC",null,null,null,null,"BAN","BANCO ITAU S/A(HEAD OFFIC",null,null,null,null,null,null,null,null,null,null,"NZD",null,null,null,null,""]
[null,null,null,null,null,null,null,null,null,null,null,"BAR","BARCLAYS BANK",null,null,null,null,"BAR","BARCLAYS BANK",null,null,null,null,null,null,null,null,null,null,"OMR",null,null,null,null,""]
[null,null,null,null,null,null,null,null,null,null,null,"BARC","BARCLAYS CAP GRP",null,null,null,null,"BARC","BARCLAYS CAP GRP",null,null,null,null,null,null,null,null,null,null,"PAB",null,null,null,null,""]
[null,null,null,null,null,null,null,null,null,null,null,"BAS","BACOT ALLAIN SOCIETE DE B",null,null,null,null,"BAS","BACOT ALLAIN SOCIETE DE B",null,null,null,null,null,null,null,null,null,null,"PEN",null,null,null,null,""]
[null,null,null,null,null,null,null,null,null,null,null,"BAY","BAYPOINT TRADING LLC",null,null,null,null,"BAY","BAYPOINT TRADING LLC",null,null,null,null,null,null,null,null,null,null,"PHP",null,null,null,null,""]
[null,null,null,null,null,null,null,null,null,null,null,"BBA","BAADER BANK AG",null,null,null,null,"BBA","BAADER BANK AG",null,null,null,null,null,null,null,null,null,null,"PKR",null,null,null,null,""]
[null,null,null,null,null,null,null,null,null,null,null,"BBE","BANK AM BELLEVUE",null,null,null,null,"BBE","BANK AM BELLEVUE",null,null,null,null,null,null,null,null,null,null,"PLN",null,null,null,null,""]
[null,null,null,null,null,null,null,null,null,null,null,"BBH","BROWN BROTHERS HARRIMAN",null,null,null,null,"BBH","BROWN BROTHERS HARRIMAN",null,null,null,null,null,null,null,null,null,null,"PTE",null,null,null,null,""]
[null,null,null,null,null,null,null,null,null,null,null,"BBHI","BBH INFOMEDIARY",null,null,null,null,"BBHI","BBH INFOMEDIARY",null,null,null,null,null,null,null,null,null,null,"QAR",null,null,null,null,""]
[null,null,null,null,null,null,null,null,null,null,null,"BBL","BANQUE BRUXELLES LAMBERT",null,null,null,null,"BBL","BANQUE BRUXELLES LAMBERT",null,null,null,null,null,null,null,null,null,null,"ROL",null,null,null,null,""]
[null,null,null,null,null,null,null,null,null,null,null,"BBR","BUCKMAN, BUCKMAN ＆ REID INC",null,null,null,null,"BBR","BUCKMAN, BUCKMAN ＆ REID INC",null,null,null,null,null,null,null,null,null,null,"RON",null,null,null,null,""]
[null,null,null,null,null,null,null,null,null,null,null,"BBS","BBVA SECURITIES INC",null,null,null,null,"BBS","BBVA SECURITIES INC",null,null,null,null,null,null,null,null,null,null,"RSD",null,null,null,null,""]
[null,null,null,null,null,null,null,null,null,null,null,"BBV","BANCO BILBAO VIZCAYA ARGENT",null,null,null,null,"BBV","BANCO BILBAO VIZCAYA ARGENT",null,null,null,null,null,null,null,null,null,null,"RUB",null,null,null,null,""]
[null,null,null,null,null,null,null,null,null,null,null,"BBY","BURDETT BUCKERIDGE YOUNG",null,null,null,null,"BBY","BURDETT BUCKERIDGE YOUNG",null,null,null,null,null,null,null,null,null,null,"SAR",null,null,null,null,""]
[null,null,null,null,null,null,null,null,null,null,null,"BCB","BBVA CORREDORES DE BOLSA LT",null,null,null,null,"BCB","BBVA CORREDORES DE BOLSA LT",null,null,null,null,null,null,null,null,null,null,"SEK",null,null,null,null,""]
[null,null,null,null,null,null,null,null,null,null,null,"BCC","BMO CAPITAL MARKET CORP",null,null,null,null,"BCC","BMO CAPITAL MARKET CORP",null,null,null,null,null,null,null,null,null,null,"SGD",null,null,null,null,""]
[null,null,null,null,null,null,null,null,null,null,null,"BCE","BNY CONVERGEX GROUP LLC",null,null,null,null,"BCE","BNY CONVERGEX GROUP LLC",null,null,null,null,null,null,null,null,null,null,"SIT",null,null,null,null,""]
[null,null,null,null,null,null,null,null,null,null,null,"BCH","BANK OF CHINA SECURITIES",null,null,null,null,"BCH","BANK OF CHINA SECURITIES",null,null,null,null,null,null,null,null,null,null,"SKK",null,null,null,null,""]
[null,null,null,null,null,null,null,null,null,null,null,"BCI","BROCKHOUSE AND COOPER",null,null,null,null,"BCI","BROCKHOUSE AND COOPER",null,null,null,null,null,null,null,null,null,null,"THB",null,null,null,null,""]
[null,null,null,null,null,null,null,null,null,null,null,"BCL","THE BENCHMARK COMPANY LLC",null,null,null,null,"BCL","THE BENCHMARK COMPANY LLC",null,null,null,null,null,null,null,null,null,null,"TND",null,null,null,null,""]
[null,null,null,null,null,null,null,null,null,null,null,"BCM","BB&T CAPITAL MARKETS",null,null,null,null,"BCM","BB&T CAPITAL MARKETS",null,null,null,null,null,null,null,null,null,null,"TRL",null,null,null,null,""]
[null,null,null,null,null,null,null,null,null,null,null,"BCN","BANK OF CHINA",null,null,null,null,"BCN","BANK OF CHINA",null,null,null,null,null,null,null,null,null,null,"TRY",null,null,null,null,""]
[null,null,null,null,null,null,null,null,null,null,null,"BCO","BANCO SANTANDER",null,null,null,null,"BCO","BANCO SANTANDER",null,null,null,null,null,null,null,null,null,null,"TTD",null,null,null,null,""]
[null,null,null,null,null,null,null,null,null,null,null,"BCOI","BCO INV CS GARANTIA BRAZIL",null,null,null,null,"BCOI","BCO INV CS GARANTIA BRAZIL",null,null,null,null,null,null,null,null,null,null,"TWD",null,null,null,null,""]
[null,null,null,null,null,null,null,null,null,null,null,"BCP","BAY CREST PARTNERS,LLC",null,null,null,null,"BCP","BAY CREST PARTNERS,LLC",null,null,null,null,null,null,null,null,null,null,"UAH",null,null,null,null,""]
[null,null,null,null,null,null,null,null,null,null,null,"BCS","BRIDPORT & CIE SA",null,null,null,null,"BCS","BRIDPORT & CIE SA",null,null,null,null,null,null,null,null,null,null,"USD"]
[null,null,null,null,null,null,null,null,null,null,null,"BCU","BANK OF COMMUNICATIONS",null,null,null,null,"BCU","BANK OF COMMUNICATIONS",null,null,null,null,null,null,null,null,null,null,"UYU"]
[null,null,null,null,null,null,null,null,null,null,null,"BCW","BULLOCK COSTIGAN & WELPTO",null,null,null,null,"BCW","BULLOCK COSTIGAN & WELPTO",null,null,null,null,null,null,null,null,null,null,"VEB"]
[null,null,null,null,null,null,null,null,null,null,null,"BDG","BANCO DE GALICIA",null,null,null,null,"BDG","BANCO DE GALICIA",null,null,null,null,null,null,null,null,null,null,"VEF"]
[null,null,null,null,null,null,null,null,null,null,null,"BEAR","BEAR STEARNS UNITED STATES",null,null,null,null,"BEAR","BEAR STEARNS UNITED STATES",null,null,null,null,null,null,null,null,null,null,"VND"]
[null,null,null,null,null,null,null,null,null,null,null,"BEL","BELL POTTER SECURITIES",null,null,null,null,"BEL","BELL POTTER SECURITIES",null,null,null,null,null,null,null,null,null,null,"XAF"]
[null,null,null,null,null,null,null,null,null,null,null,"BER","BERWEIN",null,null,null,null,"BER","BERWEIN",null,null,null,null,null,null,null,null,null,null,"XDR"]
[null,null,null,null,null,null,null,null,null,null,null,"BFT","BANQUE DE FINANCEMENT ET",null,null,null,null,"BFT","BANQUE DE FINANCEMENT ET",null,null,null,null,null,null,null,null,null,null,"XEU"]
[null,null,null,null,null,null,null,null,null,null,null,"BGC","BGC BROKERS L.P.",null,null,null,null,"BGC","BGC BROKERS L.P.",null,null,null,null,null,null,null,null,null,null,"XOF"]
[null,null,null,null,null,null,null,null,null,null,null,"BGS","BANKGESELLSCHAFT",null,null,null,null,"BGS","BANKGESELLSCHAFT",null,null,null,null,null,null,null,null,null,null,"XPF"]
[null,null,null,null,null,null,null,null,null,null,null,"BHF","BERLINER HANDELS UND FRAN",null,null,null,null,"BHF","BERLINER HANDELS UND FRAN",null,null,null,null,null,null,null,null,null,null,"ZAL"]
[null,null,null,null,null,null,null,null,null,null,null,"BHV","BAYERISCHE VEREINSBK",null,null,null,null,"BHV","BAYERISCHE VEREINSBK",null,null,null,null,null,null,null,null,null,null,"ZAR"]
[null,null,null,null,null,null,null,null,null,null,null,"BIL","BANQUE INTERNATIONAL LUXE",null,null,null,null,"BIL","BANQUE INTERNATIONAL LUXE",null,null,null,null,null,null,null,null,null,null,"ZMW"]
[null,null,null,null,null,null,null,null,null,null,null,"BIS","BANQUE INDOSUEZ",null,null,null,null,"BIS","BANQUE INDOSUEZ"]
[null,null,null,null,null,null,null,null,null,null,null,"BJC","BROADFORD, J.C.",null,null,null,null,"BJC","BROADFORD, J.C."]
[null,null,null,null,null,null,null,null,null,null,null,"BJG","BERENBG JOH GOSSLER UND CO",null,null,null,null,"BJG","BERENBG JOH GOSSLER UND CO"]
[null,null,null,null,null,null,null,null,null,null,null,"BJS","BJORNSKOV SECURITIES",null,null,null,null,"BJS","BJORNSKOV SECURITIES"]
[null,null,null,null,null,null,null,null,null,null,null,"BK1","BANK ONE",null,null,null,null,"BK1","BANK ONE"]
[null,null,null,null,null,null,null,null,null,null,null,"BKH","BANK HAPOALIM",null,null,null,null,"BKH","BANK HAPOALIM"]
[null,null,null,null,null,null,null,null,null,null,null,"BKS","BATLIVALA & KARANI SEC.",null,null,null,null,"BKS","BATLIVALA & KARANI SEC."]
[null,null,null,null,null,null,null,null,null,null,null,"BLM","BLOOMBERG TRADEBOOK LLC",null,null,null,null,"BLM","BLOOMBERG TRADEBOOK LLC"]
[null,null,null,null,null,null,null,null,null,null,null,"BLO","BLUE OAK CAPITAL LTD",null,null,null,null,"BLO","BLUE OAK CAPITAL LTD"]
[null,null,null,null,null,null,null,null,null,null,null,"BMA","BNY MELLON ALTERNATIVE IS",null,null,null,null,"BMA","BNY MELLON ALTERNATIVE IS"]
[null,null,null,null,null,null,null,null,null,null,null,"BML","BOA MERRILL INTER(LONDON)",null,null,null,null,"BML","BOA MERRILL INTER(LONDON)"]
[null,null,null,null,null,null,null,null,null,null,null,"BMN","BANK OF MONTREAL",null,null,null,null,"BMN","BANK OF MONTREAL"]
[null,null,null,null,null,null,null,null,null,null,null,"BMO","BMO NESBITT",null,null,null,null,"BMO","BMO NESBITT"]
[null,null,null,null,null,null,null,null,null,null,null,"BNB","BMO NESBITT BURNS",null,null,null,null,"BNB","BMO NESBITT BURNS"]
[null,null,null,null,null,null,null,null,null,null,null,"BNC","BAIN & COMPANY",null,null,null,null,"BNC","BAIN & COMPANY"]
[null,null,null,null,null,null,null,null,null,null,null,"BNM","BANCO NACIONAL DE MEXICO",null,null,null,null,"BNM","BANCO NACIONAL DE MEXICO"]
[null,null,null,null,null,null,null,null,null,null,null,"BNP","BNP PARIBAS",null,null,null,null,"BNP","BNP PARIBAS"]
[null,null,null,null,null,null,null,null,null,null,null,"BNY","BANK OF NEW YORK MELLON",null,null,null,null,"BNY","BANK OF NEW YORK MELLON"]
[null,null,null,null,null,null,null,null,null,null,null,"BOA","BANK OF AMERICA",null,null,null,null,"BOA","BANK OF AMERICA"]
[null,null,null,null,null,null,null,null,null,null,null,"BOB","BANK OF BERMUDA TRUST",null,null,null,null,"BOB","BANK OF BERMUDA TRUST"]
[null,null,null,null,null,null,null,null,null,null,null,"BOC","BOC",null,null,null,null,"BOC","BOC"]
[null,null,null,null,null,null,null,null,null,null,null,"BOCI","BOCI SECURITIES LTD",null,null,null,null,"BOCI","BOCI SECURITIES LTD"]
[null,null,null,null,null,null,null,null,null,null,null,"BOM","BANK OF MONTREAL",null,null,null,null,"BOM","BANK OF MONTREAL"]
[null,null,null,null,null,null,null,null,null,null,null,"BOY","BOY SECURITIES CO., LTD.",null,null,null,null,"BOY","BOY SECURITIES CO., LTD."]
[null,null,null,null,null,null,null,null,null,null,null,"BP","BANQUE PARIBAS",null,null,null,null,"BP","BANQUE PARIBAS"]
[null,null,null,null,null,null,null,null,null,null,null,"BPA","BNP PARIBAS ASSET MANAGEMEN",null,null,null,null,"BPA","BNP PARIBAS ASSET MANAGEMEN"]
[null,null,null,null,null,null,null,null,null,null,null,"BPB","BNP PARIBAS BANK",null,null,null,null,"BPB","BNP PARIBAS BANK"]
[null,null,null,null,null,null,null,null,null,null,null,"BPC","BRASIL PLURAL CCTVM SA",null,null,null,null,"BPC","BRASIL PLURAL CCTVM SA"]
[null,null,null,null,null,null,null,null,null,null,null,"BPL","BESTEX PTY LTD",null,null,null,null,"BPL","BESTEX PTY LTD"]
[null,null,null,null,null,null,null,null,null,null,null,"BPS","BCP SECURITIES",null,null,null,null,"BPS","BCP SECURITIES"]
[null,null,null,null,null,null,null,null,null,null,null,"BR","BUCKINGHAM RESEARCH",null,null,null,null,"BR","BUCKINGHAM RESEARCH"]
[null,null,null,null,null,null,null,null,null,null,null,"BRA","BRADESCO",null,null,null,null,"BRA","BRADESCO"]
[null,null,null,null,null,null,null,null,null,null,null,"BRB","BERENBERG BANK",null,null,null,null,"BRB","BERENBERG BANK"]
[null,null,null,null,null,null,null,null,null,null,null,"BRG","BERENBERG CAPITAL MARKETS",null,null,null,null,"BRG","BERENBERG CAPITAL MARKETS"]
[null,null,null,null,null,null,null,null,null,null,null,"BRI","B.RILEY & CO LLC",null,null,null,null,"BRI","B.RILEY & CO LLC"]
[null,null,null,null,null,null,null,null,null,null,null,"BRO","BROADCORT CAPITAL CORP",null,null,null,null,"BRO","BROADCORT CAPITAL CORP"]
[null,null,null,null,null,null,null,null,null,null,null,"BRS","ING BARING SECURITIES",null,null,null,null,"BRS","ING BARING SECURITIES"]
[null,null,null,null,null,null,null,null,null,null,null,"BS","BEAR STEARNS",null,null,null,null,"BS","BEAR STEARNS"]
[null,null,null,null,null,null,null,null,null,null,null,"BSI","BROWNSTONE INVESTMENT GROUP",null,null,null,null,"BSI","BROWNSTONE INVESTMENT GROUP"]
[null,null,null,null,null,null,null,null,null,null,null,"BST","BOSTON SAFE & TRUST",null,null,null,null,"BST","BOSTON SAFE & TRUST"]
[null,null,null,null,null,null,null,null,null,null,null,"BT","DEUTCHE TRUST ASIA SEC.",null,null,null,null,"BT","DEUTCHE TRUST ASIA SEC."]
[null,null,null,null,null,null,null,null,null,null,null,"BTA","BTG CAPITAL CORP",null,null,null,null,"BTA","BTG CAPITAL CORP"]
[null,null,null,null,null,null,null,null,null,null,null,"BTB","MITSUBISHI TRUST & BANKING",null,null,null,null,"BTB","MITSUBISHI TRUST & BANKING"]
[null,null,null,null,null,null,null,null,null,null,null,"BTC","DEUTCHE TRUST BANK LIMITED",null,null,null,null,"BTC","DEUTCHE TRUST BANK LIMITED"]
[null,null,null,null,null,null,null,null,null,null,null,"BTF","BTF",null,null,null,null,"BTF","BTF"]
[null,null,null,null,null,null,null,null,null,null,null,"BTG","BTIG",null,null,null,null,"BTG","BTIG"]
[null,null,null,null,null,null,null,null,null,null,null,"BTS","B-TRADE SERVICES LLC",null,null,null,null,"BTS","B-TRADE SERVICES LLC"]
[null,null,null,null,null,null,null,null,null,null,null,"BUT","BUTTLE WILSON LTD.",null,null,null,null,"BUT","BUTTLE WILSON LTD."]
[null,null,null,null,null,null,null,null,null,null,null,"BV","BV CAPITAL MARKETS",null,null,null,null,"BV","BV CAPITAL MARKETS"]
[null,null,null,null,null,null,null,null,null,null,null,"BVA","BANK VONTOBEL AG",null,null,null,null,"BVA","BANK VONTOBEL AG"]
[null,null,null,null,null,null,null,null,null,null,null,"BW","BIRR WILSON & CO",null,null,null,null,"BW","BIRR WILSON & CO"]
[null,null,null,null,null,null,null,null,null,null,null,"BZB","BZ BANK ZURICH",null,null,null,null,"BZB","BZ BANK ZURICH"]
[null,null,null,null,null,null,null,null,null,null,null,"BZW","BARCLAYS CAPITAL",null,null,null,null,"BZW","BARCLAYS CAPITAL"]
[null,null,null,null,null,null,null,null,null,null,null,"CAB","CALYON BANK",null,null,null,null,"CAB","CALYON BANK"]
[null,null,null,null,null,null,null,null,null,null,null,"CAC","CACEIS BANK",null,null,null,null,"CAC","CACEIS BANK"]
[null,null,null,null,null,null,null,null,null,null,null,"CAG","CREDIT AGRICOLE",null,null,null,null,"CAG","CREDIT AGRICOLE"]
[null,null,null,null,null,null,null,null,null,null,null,"CAI","BANK AUSTRIA CREDITANSTALT",null,null,null,null,"CAI","BANK AUSTRIA CREDITANSTALT"]
[null,null,null,null,null,null,null,null,null,null,null,"CAN","CANACCORD CAPITAL (EUROPE)",null,null,null,null,"CAN","CANACCORD CAPITAL (EUROPE)"]
[null,null,null,null,null,null,null,null,null,null,null,"CAO","CAPITAL ONE SECURITIES, INC",null,null,null,null,"CAO","CAPITAL ONE SECURITIES, INC"]
[null,null,null,null,null,null,null,null,null,null,null,"CAP","CAPITAL INSTITUTIONAL",null,null,null,null,"CAP","CAPITAL INSTITUTIONAL"]
[null,null,null,null,null,null,null,null,null,null,null,"CAS","CAPITAL SECURITIES CO.,LTD",null,null,null,null,"CAS","CAPITAL SECURITIES CO.,LTD"]
[null,null,null,null,null,null,null,null,null,null,null,"CASH","CASH",null,null,null,null,"CASH","CASH"]
[null,null,null,null,null,null,null,null,null,null,null,"CAT","CATHAY SECURITIES CORP",null,null,null,null,"CASHDUMMY",0]
[null,null,null,null,null,null,null,null,null,null,null,"CAZ","JPMORGAN CAZENOVE INT.",null,null,null,null,"CAT","CATHAY SECURITIES CORP"]
[null,null,null,null,null,null,null,null,null,null,null,"CB","CITIBANK",null,null,null,null,"CAZ","JPMORGAN CAZENOVE INT."]
[null,null,null,null,null,null,null,null,null,null,null,"CBA","CARNEGIE BANK AS",null,null,null,null,"CB","CITIBANK"]
[null,null,null,null,null,null,null,null,null,null,null,"CBB","CIMB BANK",null,null,null,null,"CBA","CARNEGIE BANK AS"]
[null,null,null,null,null,null,null,null,null,null,null,"CCB","CCB INTERNATIONAL",null,null,null,null,"CBB","CIMB BANK"]
[null,null,null,null,null,null,null,null,null,null,null,"CCC","CREDICORP CAPITAL",null,null,null,null,"CCB","CCB INTERNATIONAL"]
[null,null,null,null,null,null,null,null,null,null,null,"CCF","CREDIT COMMERCIALE DE FRA",null,null,null,null,"CCC","CREDICORP CAPITAL"]
[null,null,null,null,null,null,null,null,null,null,null,"CCI","CHAPDELAINE & CO INC",null,null,null,null,"CCF","CREDIT COMMERCIALE DE FRA"]
[null,null,null,null,null,null,null,null,null,null,null,"CCM","COMMERZBANK",null,null,null,null,"CCI","CHAPDELAINE & CO INC"]
[null,null,null,null,null,null,null,null,null,null,null,"CCP","CRESCENT CAPITAL GROUP LP",null,null,null,null,"CCM","COMMERZBANK"]
[null,null,null,null,null,null,null,null,null,null,null,"CCR","COOPERATIEVE CENT RAIFF BOE",null,null,null,null,"CCP","CRESCENT CAPITAL GROUP LP"]
[null,null,null,null,null,null,null,null,null,null,null,"CCS","CORTVIEW CAPITAL SECURITIES",null,null,null,null,"CCR","COOPERATIEVE CENT RAIFF BOE"]
[null,null,null,null,null,null,null,null,null,null,null,"CCV","CONVENCAO S/A CORRETORA DE",null,null,null,null,"CCS","CORTVIEW CAPITAL SECURITIES"]
[null,null,null,null,null,null,null,null,null,null,null,"CCZ","COMMERZ SECURITIES",null,null,null,null,"CCV","CONVENCAO S/A CORRETORA DE"]
[null,null,null,null,null,null,null,null,null,null,null,"CDC","CDC",null,null,null,null,"CCZ","COMMERZ SECURITIES"]
[null,null,null,null,null,null,null,null,null,null,null,"CDL","CREST DEPOSITORY LIMITED",null,null,null,null,"CDC","CDC"]
[null,null,null,null,null,null,null,null,null,null,null,"CDV","CHEUVREUX DE VIRIEU SA",null,null,null,null,"CDL","CREST DEPOSITORY LIMITED"]
[null,null,null,null,null,null,null,null,null,null,null,"CEL","CELFIN CAPITAL SA CORREDORE",null,null,null,null,"CDV","CHEUVREUX DE VIRIEU SA"]
[null,null,null,null,null,null,null,null,null,null,null,"CEN","CENTURY SECURITIES CO.,LTD",null,null,null,null,"CEL","CELFIN CAPITAL SA CORREDORE"]
[null,null,null,null,null,null,null,null,null,null,null,"CF","CHRISTIANIA FORVALTNING A",null,null,null,null,"CEN","CENTURY SECURITIES CO.,LTD"]
[null,null,null,null,null,null,null,null,null,null,null,"CFB","CREDIT SWISS FIRST BOSTON",null,null,null,null,"CF","CHRISTIANIA FORVALTNING A"]
[null,null,null,null,null,null,null,null,null,null,null,"CFG","CANTOR FITZGERALD",null,null,null,null,"CFB","CREDIT SWISS FIRST BOSTON"]
[null,null,null,null,null,null,null,null,null,null,null,"CFI","CANACCORD FINANCIAL INC.",null,null,null,null,"CFG","CANTOR FITZGERALD"]
[null,null,null,null,null,null,null,null,null,null,null,"CGC","CIBC GRENFELL & COLEGRAVE",null,null,null,null,"CFI","CANACCORD FINANCIAL INC."]
[null,null,null,null,null,null,null,null,null,null,null,"CGK","CGS-CIMB SECURITIES SDN BHD",null,null,null,null,"CGC","CIBC GRENFELL & COLEGRAVE"]
[null,null,null,null,null,null,null,null,null,null,null,"CGR","CIT GROUP",null,null,null,null,"CGK","CGS-CIMB SECURITIES SDN BHD"]
[null,null,null,null,null,null,null,null,null,null,null,"CH","CHARTERED SECURITIES",null,null,null,null,"CGR","CIT GROUP"]
[null,null,null,null,null,null,null,null,null,null,null,"CHB","CHIBA BANK",null,null,null,null,"CH","CHARTERED SECURITIES"]
[null,null,null,null,null,null,null,null,null,null,null,"CHC","CHINA CONSTRUCTION BANK",null,null,null,null,"CHB","CHIBA BANK"]
[null,null,null,null,null,null,null,null,null,null,null,"CHD","CHD",null,null,null,null,"CHC","CHINA CONSTRUCTION BANK"]
[null,null,null,null,null,null,null,null,null,null,null,"CHE","CHEEVERS & COMPANY,INC",null,null,null,null,"CHD","CHD"]
[null,null,null,null,null,null,null,null,null,null,null,"CHI","CHING WONG",null,null,null,null,"CHE","CHEEVERS & COMPANY,INC"]
[null,null,null,null,null,null,null,null,null,null,null,"CHK","THE NEW CHINA HONG KONG S",null,null,null,null,"CHI","CHING WONG"]
[null,null,null,null,null,null,null,null,null,null,null,"CHN","CHINA SECURITIES CO LTD",null,null,null,null,"CHK","THE NEW CHINA HONG KONG S"]
[null,null,null,null,null,null,null,null,null,null,null,"CHO","CHOLET DUPONT",null,null,null,null,"CHN","CHINA SECURITIES CO LTD"]
[null,null,null,null,null,null,null,null,null,null,null,"CHS","CHASE SECURITIES LTD.",null,null,null,null,"CHO","CHOLET DUPONT"]
[null,null,null,null,null,null,null,null,null,null,null,"CHT","CHARTER HOUSE TINLEY",null,null,null,null,"CHS","CHASE SECURITIES LTD."]
[null,null,null,null,null,null,null,null,null,null,null,"CIB","CHINA CITIC BANK",null,null,null,null,"CHT","CHARTER HOUSE TINLEY"]
[null,null,null,null,null,null,null,null,null,null,null,"CIBC","CANADIAN IMPERIAL BANK",null,null,null,null,"CIB","CHINA CITIC BANK"]
[null,null,null,null,null,null,null,null,null,null,null,"CIC","CHINA INTERNATIONAL CAPITAL",null,null,null,null,"CIBC","CANADIAN IMPERIAL BANK"]
[null,null,null,null,null,null,null,null,null,null,null,"CIGK","CIMB-GK",null,null,null,null,"CIC","CHINA INTERNATIONAL CAPITAL"]
[null,null,null,null,null,null,null,null,null,null,null,"CII","CREDIT ITALIANO",null,null,null,null,"CIGK","CIMB-GK"]
[null,null,null,null,null,null,null,null,null,null,null,"CIL","CARNEGIE INTERNATIONAL LT",null,null,null,null,"CII","CREDIT ITALIANO"]
[null,null,null,null,null,null,null,null,null,null,null,"CIM","CIMB INVESTMENT BANK BERHAD",null,null,null,null,"CIL","CARNEGIE INTERNATIONAL LT"]
[null,null,null,null,null,null,null,null,null,null,null,"CIMB","CIMB SECURITIES PTE LTD",null,null,null,null,"CIM","CIMB INVESTMENT BANK BERHAD"]
[null,null,null,null,null,null,null,null,null,null,null,"CIS","CITIC SECURITIES",null,null,null,null,"CIMB","CIMB SECURITIES PTE LTD"]
[null,null,null,null,null,null,null,null,null,null,null,"CITI","CITI GROUP (SALOMON S BARNE",null,null,null,null,"CIS","CITIC SECURITIES"]
[null,null,null,null,null,null,null,null,null,null,null,"CIU","CICC US SECURITIES INC",null,null,null,null,"CITI","CITI GROUP (SALOMON S BARNE"]
[null,null,null,null,null,null,null,null,null,null,null,"CJL","C.J. LAWRENCE",null,null,null,null,"CIU","CICC US SECURITIES INC"]
[null,null,null,null,null,null,null,null,null,null,null,"CK","CARR KITCAT",null,null,null,null,"CJL","C.J. LAWRENCE"]
[null,null,null,null,null,null,null,null,null,null,null,"CKB","CHIBA KOGYO BANK",null,null,null,null,"CK","CARR KITCAT"]
[null,null,null,null,null,null,null,null,null,null,null,"CL","CLSA",null,null,null,null,"CKB","CHIBA KOGYO BANK"]
[null,null,null,null,null,null,null,null,null,null,null,"CLAL","CLAL",null,null,null,null,"CL","CLSA"]
[null,null,null,null,null,null,null,null,null,null,null,"CLK","CL KING & ASSOCIATES",null,null,null,null,"CLAL","CLAL"]
[null,null,null,null,null,null,null,null,null,null,null,"CLS","CLSA",null,null,null,null,"CLK","CL KING & ASSOCIATES"]
[null,null,null,null,null,null,null,null,null,null,null,"CLSA","CREDIT LYONNAIS",null,null,null,null,"CLS","CLSA"]
[null,null,null,null,null,null,null,null,null,null,null,"CMB","JPMORGAN CHASE BANK",null,null,null,null,"CLSA","CREDIT LYONNAIS"]
[null,null,null,null,null,null,null,null,null,null,null,"CMC","CHINA MERCHANTS SEC CO LTD",null,null,null,null,"CMB","JPMORGAN CHASE BANK"]
[null,null,null,null,null,null,null,null,null,null,null,"CME","CIBC MELLON",null,null,null,null,"CMC","CHINA MERCHANTS SEC CO LTD"]
[null,null,null,null,null,null,null,null,null,null,null,"CMI","CIMB ISLAMIC",null,null,null,null,"CME","CIBC MELLON"]
[null,null,null,null,null,null,null,null,null,null,null,"CML","CRESCENT MEZZANINE 7C LLC",null,null,null,null,"CMI","CIMB ISLAMIC"]
[null,null,null,null,null,null,null,null,null,null,null,"CMS","CHASE MANHATTAN SECURITIES",null,null,null,null,"CML","CRESCENT MEZZANINE 7C LLC"]
[null,null,null,null,null,null,null,null,null,null,null,"CNA","CITIBANK N.A.",null,null,null,null,"CMS","CHASE MANHATTAN SECURITIES"]
[null,null,null,null,null,null,null,null,null,null,null,"CNW","GREENWICH NATWEST SECURIT",null,null,null,null,"CNA","CITIBANK N.A."]
[null,null,null,null,null,null,null,null,null,null,null,"COAC","COAC",null,null,null,null,"CNW","GREENWICH NATWEST SECURIT"]
[null,null,null,null,null,null,null,null,null,null,null,"CON","CONVERGEX EXECUTION",null,null,null,null,"COAC","COAC"]
[null,null,null,null,null,null,null,null,null,null,null,"COR","CORYO SECURITIES",null,null,null,null,"CON","CONVERGEX EXECUTION"]
[null,null,null,null,null,null,null,null,null,null,null,"COS","COSMO SECURITIES",null,null,null,null,"COR","CORYO SECURITIES"]
[null,null,null,null,null,null,null,null,null,null,null,"COW","COWEN & COMPANY",null,null,null,null,"COS","COSMO SECURITIES"]
[null,null,null,null,null,null,null,null,null,null,null,"CPS","CORE PACIFIC SECURITIES",null,null,null,null,"COW","COWEN & COMPANY"]
[null,null,null,null,null,null,null,null,null,null,null,"CR","CREDIT STURDIVANT",null,null,null,null,"CPS","CORE PACIFIC SECURITIES"]
[null,null,null,null,null,null,null,null,null,null,null,"CRA","CREDIT AGRICOLE SECURITIES",null,null,null,null,"CR","CREDIT STURDIVANT"]
[null,null,null,null,null,null,null,null,null,null,null,"CRD","RBC DOMINION SECURITIES L",null,null,null,null,"CRA","CREDIT AGRICOLE SECURITIES"]
[null,null,null,null,null,null,null,null,null,null,null,"CRH","CRAIG HALLUM CAPITAL",null,null,null,null,"CRD","RBC DOMINION SECURITIES L"]
[null,null,null,null,null,null,null,null,null,null,null,"CRI","CREDIT RESEARCH INC.",null,null,null,null,"CRH","CRAIG HALLUM CAPITAL"]
[null,null,null,null,null,null,null,null,null,null,null,"CRT","CRT CAPITAL GROUP LLC",null,null,null,null,"CRI","CREDIT RESEARCH INC."]
[null,null,null,null,null,null,null,null,null,null,null,"CS","COLLINS STEWART",null,null,null,null,"CRT","CRT CAPITAL GROUP LLC"]
[null,null,null,null,null,null,null,null,null,null,null,"CSA","CREDIT SUISSE AG",null,null,null,null,"CS","COLLINS STEWART"]
[null,null,null,null,null,null,null,null,null,null,null,"CSB","CREDIT SUISSE TRUST AND B",null,null,null,null,"CSA","CREDIT SUISSE AG"]
[null,null,null,null,null,null,null,null,null,null,null,"CSC","CHARLES SCWAB & CO INC.",null,null,null,null,"CSB","CREDIT SUISSE TRUST AND B"]
[null,null,null,null,null,null,null,null,null,null,null,"CSE","CS EUROPE LTD CSA",null,null,null,null,"CSC","CHARLES SCWAB & CO INC."]
[null,null,null,null,null,null,null,null,null,null,null,"CSF","CREDIT SUISSE",null,null,null,null,"CSE","CS EUROPE LTD CSA"]
[null,null,null,null,null,null,null,null,null,null,null,"CSFBBRS1XXX","CSFB BRASIL",null,null,null,null,"CSF","CREDIT SUISSE"]
[null,null,null,null,null,null,null,null,null,null,null,"CSFBRA","CSFB (BRASIL)",null,null,null,null,"CSFBBRS1XXX","CSFB BRASIL"]
[null,null,null,null,null,null,null,null,null,null,null,"CSV","CITICORP SECURITIES",null,null,null,null,"CSFBRA","CSFB (BRASIL)"]
[null,null,null,null,null,null,null,null,null,null,null,"CTD","CITADEL",null,null,null,null,"CSV","CITICORP SECURITIES"]
[null,null,null,null,null,null,null,null,null,null,null,"CTR","CENTRAL TANSHI",null,null,null,null,"CTD","CITADEL"]
[null,null,null,null,null,null,null,null,null,null,null,"CTS","CHIN TUNG SECURITIES CO.",null,null,null,null,"CTR","CENTRAL TANSHI"]
[null,null,null,null,null,null,null,null,null,null,null,"CTT","CITITRUST AND BANKING COR",null,null,null,null,"CTS","CHIN TUNG SECURITIES CO."]
[null,null,null,null,null,null,null,null,null,null,null,"CTZ","CITIZENS CAPITAL MARKETS",null,null,null,null,"CTT","CITITRUST AND BANKING COR"]
[null,null,null,null,null,null,null,null,null,null,null,"CUC","CUTTONE & CO.",null,null,null,null,"CTZ","CITIZENS CAPITAL MARKETS"]
[null,null,null,null,null,null,null,null,null,null,null,"CVL","CRESVALA INTERNATIONAL LT",null,null,null,null,"CUC","CUTTONE & CO."]
[null,null,null,null,null,null,null,null,null,null,null,"CWB","COMMONWEALTH BANK",null,null,null,null,"CVL","CRESVALA INTERNATIONAL LT"]
[null,null,null,null,null,null,null,null,null,null,null,"CWK","CHESWICK SECURITIES INC.",null,null,null,null,"CWB","COMMONWEALTH BANK"]
[null,null,null,null,null,null,null,null,null,null,null,"CWM","CIBC WORLD MARKETS",null,null,null,null,"CWK","CHESWICK SECURITIES INC."]
[null,null,null,null,null,null,null,null,null,null,null,"CWS","COMMONWEALTH SECURITIES",null,null,null,null,"CWM","CIBC WORLD MARKETS"]
[null,null,null,null,null,null,null,null,null,null,null,"CY","CYPRESS SECURITIES GROUP",null,null,null,null,"CWS","COMMONWEALTH SECURITIES"]
[null,null,null,null,null,null,null,null,null,null,null,"CZI","CAZENOVE INC.",null,null,null,null,"CY","CYPRESS SECURITIES GROUP"]
[null,null,null,null,null,null,null,null,null,null,null,"DA","DAI-ICHI EUROPE LTD.",null,null,null,null,"CZI","CAZENOVE INC."]
[null,null,null,null,null,null,null,null,null,null,null,"DAA","DEUTSCHE APOTHEKER UND AERZ",null,null,null,null,"DA","DAI-ICHI EUROPE LTD."]
[null,null,null,null,null,null,null,null,null,null,null,"DAB","RISONA BANK",null,null,null,null,"DAA","DEUTSCHE APOTHEKER UND AERZ"]
[null,null,null,null,null,null,null,null,null,null,null,"DAD","D.A. DAVIDSON",null,null,null,null,"DAB","RISONA BANK"]
[null,null,null,null,null,null,null,null,null,null,null,"DAE","DAEWOO",null,null,null,null,"DAD","D.A. DAVIDSON"]
[null,null,null,null,null,null,null,null,null,null,null,"DAI","DAIWA SECURITIES CO. LTD.",null,null,null,null,"DAE","DAEWOO"]
[null,null,null,null,null,null,null,null,null,null,null,"DAN","DANAREKSA SECURITIES PT",null,null,null,null,"DAI","DAIWA SECURITIES CO. LTD."]
[null,null,null,null,null,null,null,null,null,null,null,"DAO","DAO",null,null,null,null,"DAN","DANAREKSA SECURITIES PT"]
[null,null,null,null,null,null,null,null,null,null,null,"DB","DRESDNER BANK",null,null,null,null,"DAO","DAO"]
[null,null,null,null,null,null,null,null,null,null,null,"DBA","DNB BANK ASA",null,null,null,null,"DB","DRESDNER BANK"]
[null,null,null,null,null,null,null,null,null,null,null,"DBB","DBS BANK",null,null,null,null,"DBA","DNB BANK ASA"]
[null,null,null,null,null,null,null,null,null,null,null,"DBC","DEUTSCHE SECURITIES",null,null,null,null,"DBB","DBS BANK"]
[null,null,null,null,null,null,null,null,null,null,null,"DBD","DEUTSCHE BANK AG",null,null,null,null,"DBC","DEUTSCHE SECURITIES"]
[null,null,null,null,null,null,null,null,null,null,null,"DBL","DREXEL BURNHAM LAMBERT",null,null,null,null,"DBD","DEUTSCHE BANK AG"]
[null,null,null,null,null,null,null,null,null,null,null,"DBS","DBS VICKERS",null,null,null,null,"DBL","DREXEL BURNHAM LAMBERT"]
[null,null,null,null,null,null,null,null,null,null,null,"DBT","DEUTSCHE BANK TRUST COMPANY",null,null,null,null,"DBS","DBS VICKERS"]
[null,null,null,null,null,null,null,null,null,null,null,"DCA","D.CARNEGIE & CO AB",null,null,null,null,"DBT","DEUTSCHE BANK TRUST COMPANY"]
[null,null,null,null,null,null,null,null,null,null,null,"DCI","DONALDSON & CO INC",null,null,null,null,"DCA","D.CARNEGIE & CO AB"]
[null,null,null,null,null,null,null,null,null,null,null,"DCM","DRAGON CAPITAL MARKETS",null,null,null,null,"DCI","DONALDSON & CO INC"]
[null,null,null,null,null,null,null,null,null,null,null,"DCW","DAKYO COSTIGAN & WELPTON",null,null,null,null,"DCM","DRAGON CAPITAL MARKETS"]
[null,null,null,null,null,null,null,null,null,null,null,"DD","DUCATEL DUVAL SA",null,null,null,null,"DCW","DAKYO COSTIGAN & WELPTON"]
[null,null,null,null,null,null,null,null,null,null,null,"DDS","DEN DANSKE SEC.",null,null,null,null,"DD","DUCATEL DUVAL SA"]
[null,null,null,null,null,null,null,null,null,null,null,"DEQ","DEUTSCHE EQUITIES",null,null,null,null,"DDS","DEN DANSKE SEC."]
[null,null,null,null,null,null,null,null,null,null,null,"DES","DESJARDINS",null,null,null,null,"DEQ","DEUTSCHE EQUITIES"]
[null,null,null,null,null,null,null,null,null,null,null,"DEU","DEUTSCHE BANK",null,null,null,null,"DES","DESJARDINS"]
[null,null,null,null,null,null,null,null,null,null,null,"DEUE","DEUTSCHE EQUITIES PVT LT",null,null,null,null,"DEU","DEUTSCHE BANK"]
[null,null,null,null,null,null,null,null,null,null,null,"DG","DG SECUR0TIES",null,null,null,null,"DEUE","DEUTSCHE EQUITIES PVT LT"]
[null,null,null,null,null,null,null,null,null,null,null,"DGS","DONGSUH SECURITIES CO.,LT",null,null,null,null,"DG","DG SECUR0TIES"]
[null,null,null,null,null,null,null,null,null,null,null,"DIA","DIRECT ACCESS BROKERAGE SVC",null,null,null,null,"DGS","DONGSUH SECURITIES CO.,LT"]
[null,null,null,null,null,null,null,null,null,null,null,"DIE","ERSTE OESTER",null,null,null,null,"DIA","DIRECT ACCESS BROKERAGE SVC"]
[null,null,null,null,null,null,null,null,null,null,null,"DIF","DIF MANAGEMENT B.V.",null,null,null,null,"DIE","ERSTE OESTER"]
[null,null,null,null,null,null,null,null,null,null,null,"DIM","DAIMAN SEC",null,null,null,null,"DIF","DIF MANAGEMENT B.V."]
[null,null,null,null,null,null,null,null,null,null,null,"DIS","DAISEI SEC",null,null,null,null,"DIM","DAIMAN SEC"]
[null,null,null,null,null,null,null,null,null,null,null,"DK","DUFOUR-KERVERN ET CIE",null,null,null,null,"DIS","DAISEI SEC"]
[null,null,null,null,null,null,null,null,null,null,null,"DLJ","DONALDSON, LUFKIN, JENRET",null,null,null,null,"DK","DUFOUR-KERVERN ET CIE"]
[null,null,null,null,null,null,null,null,null,null,null,"DMX","D2MX PTY LTD",null,null,null,null,"DLJ","DONALDSON, LUFKIN, JENRET"]
[null,null,null,null,null,null,null,null,null,null,null,"DNB","DEN NORSKE BANK",null,null,null,null,"DMX","D2MX PTY LTD"]
[null,null,null,null,null,null,null,null,null,null,null,"DP","DONGBANG PEREGRINE SECURI",null,null,null,null,"DNB","DEN NORSKE BANK"]
[null,null,null,null,null,null,null,null,null,null,null,"DRB","DRESDNER BANK FRANKFURT",null,null,null,null,"DP","DONGBANG PEREGRINE SECURI"]
[null,null,null,null,null,null,null,null,null,null,null,"DRL","DILLON READ LTD.",null,null,null,null,"DRB","DRESDNER BANK FRANKFURT"]
[null,null,null,null,null,null,null,null,null,null,null,"DS","DAIWA SECURITIES AMERICA",null,null,null,null,"DRL","DILLON READ LTD."]
[null,null,null,null,null,null,null,null,null,null,null,"DSK","DANSKE BANK",null,null,null,null,"DS","DAIWA SECURITIES AMERICA"]
[null,null,null,null,null,null,null,null,null,null,null,"DSN","DAISHIN SECURITIES CO.LTD",null,null,null,null,"DSK","DANSKE BANK"]
[null,null,null,null,null,null,null,null,null,null,null,"DSP","DSP MERRILL LYNCH LIMITED",null,null,null,null,"DSN","DAISHIN SECURITIES CO.LTD"]
[null,null,null,null,null,null,null,null,null,null,null,"DUMMY","DUMMY",null,null,null,null,"DSP","DSP MERRILL LYNCH LIMITED"]
[null,null,null,null,null,null,null,null,null,null,null,"DUN","DUNDEE SECURITIES LTD",null,null,null,null,"DUMMY","DUMMY"]
[null,null,null,null,null,null,null,null,null,null,null,"DVY","DAVY STOCKBROKERS",null,null,null,null,"DUN","DUNDEE SECURITIES LTD"]
[null,null,null,null,null,null,null,null,null,null,null,"DWR","DEAN WITTER REYNOLDS, INC",null,null,null,null,"DVY","DAVY STOCKBROKERS"]
[null,null,null,null,null,null,null,null,null,null,null,"DWS","DONGWON SECURITIES",null,null,null,null,"DWR","DEAN WITTER REYNOLDS, INC"]
[null,null,null,null,null,null,null,null,null,null,null,"DXB","DEXIA BANK",null,null,null,null,"DWS","DONGWON SECURITIES"]
[null,null,null,null,null,null,null,null,null,null,null,"EBP","EXANE BNP PARIBAS",null,null,null,null,"DXB","DEXIA BANK"]
[null,null,null,null,null,null,null,null,null,null,null,"ECI","EVER CAPITAL INVESTMENTS",null,null,null,null,"EBP","EXANE BNP PARIBAS"]
[null,null,null,null,null,null,null,null,null,null,null,"ECM","ECM LIBRA",null,null,null,null,"ECI","EVER CAPITAL INVESTMENTS"]
[null,null,null,null,null,null,null,null,null,null,null,"EDE","EDELWEISS CAPITAL LTD",null,null,null,null,"ECM","ECM LIBRA"]
[null,null,null,null,null,null,null,null,null,null,null,"EDEL","EDELWEISS CAPITAL LTD",null,null,null,null,"EDE","EDELWEISS CAPITAL LTD"]
[null,null,null,null,null,null,null,null,null,null,null,"EDF","ED&F MAN CAPITAL MARKETS",null,null,null,null,"EDEL","EDELWEISS CAPITAL LTD"]
[null,null,null,null,null,null,null,null,null,null,null,"EF","EBERSTADT FLEMING",null,null,null,null,"EDF","ED&F MAN CAPITAL MARKETS"]
[null,null,null,null,null,null,null,null,null,null,null,"EFG","EFG SECURITIES",null,null,null,null,"EF","EBERSTADT FLEMING"]
[null,null,null,null,null,null,null,null,null,null,null,"EGT","EPPLER, GUERIN & TURNER",null,null,null,null,"EFG","EFG SECURITIES"]
[null,null,null,null,null,null,null,null,null,null,null,"EKN","EKN",null,null,null,null,"EGT","EPPLER, GUERIN & TURNER"]
[null,null,null,null,null,null,null,null,null,null,null,"ENA","ENAM SECURITIES PVT LTD",null,null,null,null,"EKN","EKN"]
[null,null,null,null,null,null,null,null,null,null,null,"ENL","EXECUTION NOBLE LIMITED",null,null,null,null,"ENA","ENAM SECURITIES PVT LTD"]
[null,null,null,null,null,null,null,null,null,null,null,"EQT","EQUITA SIM S.P.A.",null,null,null,null,"ENL","EXECUTION NOBLE LIMITED"]
[null,null,null,null,null,null,null,null,null,null,null,"ESP","ESPOSITO SECURITIES LLC",null,null,null,null,"EQT","EQUITA SIM S.P.A."]
[null,null,null,null,null,null,null,null,null,null,null,"ESS","ESPIRITO SANTOS",null,null,null,null,"ESP","ESPOSITO SECURITIES LLC"]
[null,null,null,null,null,null,null,null,null,null,null,"ETS","ETS",null,null,null,null,"ESS","ESPIRITO SANTOS"]
[null,null,null,null,null,null,null,null,null,null,null,"EUZ","EUROZ SECURITIES LIMITED",null,null,null,null,"ETS","ETS"]
[null,null,null,null,null,null,null,null,null,null,null,"EVA","EVANS AND PARTNERS PTY LTD",null,null,null,null,"EUZ","EUROZ SECURITIES LIMITED"]
[null,null,null,null,null,null,null,null,null,null,null,"EVC","EVERCORE GROUP LLC",null,null,null,null,"EVA","EVANS AND PARTNERS PTY LTD"]
[null,null,null,null,null,null,null,null,null,null,null,"EVS","EVLI SECURITIES",null,null,null,null,"EVC","EVERCORE GROUP LLC"]
[null,null,null,null,null,null,null,null,null,null,null,"EXA","EXANE SA",null,null,null,null,"EVS","EVLI SECURITIES"]
[null,null,null,null,null,null,null,null,null,null,null,"EXO","EXOTIX PARTNERS LLP",null,null,null,null,"EXA","EXANE SA"]
[null,null,null,null,null,null,null,null,null,null,null,"FA","FIRST AUSTRIA",null,null,null,null,"EXO","EXOTIX PARTNERS LLP"]
[null,null,null,null,null,null,null,null,null,null,null,"FAN","FANO SECURITIES",null,null,null,null,"FA","FIRST AUSTRIA"]
[null,null,null,null,null,null,null,null,null,null,null,"FBR","FRIEDMAN,BILLINGS,RAMSEY",null,null,null,null,"FAN","FANO SECURITIES"]
[null,null,null,null,null,null,null,null,null,null,null,"FCC","FIDELITY CLEARING CANADA",null,null,null,null,"FBR","FRIEDMAN,BILLINGS,RAMSEY"]
[null,null,null,null,null,null,null,null,null,null,null,"FDA","FATOR DORIA ATHERINO S.A. C",null,null,null,null,"FCC","FIDELITY CLEARING CANADA"]
[null,null,null,null,null,null,null,null,null,null,null,"FDE","FIDENTIIS EQUITIES",null,null,null,null,"FDA","FATOR DORIA ATHERINO S.A. C"]
[null,null,null,null,null,null,null,null,null,null,null,"FGI","FG INVERSIONES BRUSATILES",null,null,null,null,"FDE","FIDENTIIS EQUITIES"]
[null,null,null,null,null,null,null,null,null,null,null,"FIB","FIBA NORDIC SECS",null,null,null,null,"FGI","FG INVERSIONES BRUSATILES"]
[null,null,null,null,null,null,null,null,null,null,null,"FID","FIDELITY INVESTMENTS",null,null,null,null,"FIB","FIBA NORDIC SECS"]
[null,null,null,null,null,null,null,null,null,null,null,"FIE","FIELDSTONE",null,null,null,null,"FID","FIDELITY INVESTMENTS"]
[null,null,null,null,null,null,null,null,null,null,null,"FIN","FINACORP SECURITIES",null,null,null,null,"FIE","FIELDSTONE"]
[null,null,null,null,null,null,null,null,null,null,null,"FIP","FINNCAP LTD",null,null,null,null,"FIN","FINACORP SECURITIES"]
[null,null,null,null,null,null,null,null,null,null,null,"FIV","FERRI INTERNATIONAL VAN H",null,null,null,null,"FIP","FINNCAP LTD"]
[null,null,null,null,null,null,null,null,null,null,null,"FKA","THE BANK OF FUKUOKA",null,null,null,null,"FIV","FERRI INTERNATIONAL VAN H"]
[null,null,null,null,null,null,null,null,null,null,null,"FLO","FLOW TRADERS",null,null,null,null,"FKA","THE BANK OF FUKUOKA"]
[null,null,null,null,null,null,null,null,null,null,null,"FMC","FIRST MANHATTAN CO.",null,null,null,null,"FLO","FLOW TRADERS"]
[null,null,null,null,null,null,null,null,null,null,null,"FNI","FINANCIAL NETWORK INVESTMEN",null,null,null,null,"FMC","FIRST MANHATTAN CO."]
[null,null,null,null,null,null,null,null,null,null,null,"FOR","FORSYTH BARR LIMITED",null,null,null,null,"FNI","FINANCIAL NETWORK INVESTMEN"]
[null,null,null,null,null,null,null,null,null,null,null,"FORLUX","FORTIS BANK LUXEMBOURG",null,null,null,null,"FOR","FORSYTH BARR LIMITED"]
[null,null,null,null,null,null,null,null,null,null,null,"FPK","FOA PITT KELTON INC",null,null,null,null,"FORLUX","FORTIS BANK LUXEMBOURG"]
[null,null,null,null,null,null,null,null,null,null,null,"FR","FRANCE BBL",null,null,null,null,"FPK","FOA PITT KELTON INC"]
[null,null,null,null,null,null,null,null,null,null,null,"FRA","FRASER SECURITIES PTE LTD",null,null,null,null,"FR","FRANCE BBL"]
[null,null,null,null,null,null,null,null,null,null,null,"FRB","FORTIS BANK",null,null,null,null,"FRA","FRASER SECURITIES PTE LTD"]
[null,null,null,null,null,null,null,null,null,null,null,"FRC","FBR",null,null,null,null,"FRB","FORTIS BANK"]
[null,null,null,null,null,null,null,null,null,null,null,"FRS","FRUNK RUSSELL SECURITIES,",null,null,null,null,"FRC","FBR"]
[null,null,null,null,null,null,null,null,null,null,null,"FSC","FIRST SOUTHWEST COMPANY",null,null,null,null,"FRS","FRUNK RUSSELL SECURITIES,"]
[null,null,null,null,null,null,null,null,null,null,null,"FSM","FURMAN SELZ MAGER DIETZ B",null,null,null,null,"FSC","FIRST SOUTHWEST COMPANY"]
[null,null,null,null,null,null,null,null,null,null,null,"FST","FIRST SECURITIES",null,null,null,null,"FSM","FURMAN SELZ MAGER DIETZ B"]
[null,null,null,null,null,null,null,null,null,null,null,"FTB","FIRST TENNESSEE BANK",null,null,null,null,"FST","FIRST SECURITIES"]
[null,null,null,null,null,null,null,null,null,null,null,"FTN","FTN FINANCIAL CM",null,null,null,null,"FTB","FIRST TENNESSEE BANK"]
[null,null,null,null,null,null,null,null,null,null,null,"FTS","FIFTH THIRD SECURITIES INC",null,null,null,null,"FTN","FTN FINANCIAL CM"]
[null,null,null,null,null,null,null,null,null,null,null,"FU","WACHOVIA SECURITIES INC",null,null,null,null,"FTS","FIFTH THIRD SECURITIES INC"]
[null,null,null,null,null,null,null,null,null,null,null,"FUB","FUBON SECURITIES",null,null,null,null,"FU","WACHOVIA SECURITIES INC"]
[null,null,null,null,null,null,null,null,null,null,null,"FUC","FIRST UNION CAPITAL MARKET",null,null,null,null,"FUB","FUBON SECURITIES"]
[null,null,null,null,null,null,null,null,null,null,null,"FUK","FUKUYAMA SEC",null,null,null,null,"FUC","FIRST UNION CAPITAL MARKET"]
[null,null,null,null,null,null,null,null,null,null,null,"GAM","GAM FUND MANAGEMENT LIMITED",null,null,null,null,"FUK","FUKUYAMA SEC"]
[null,null,null,null,null,null,null,null,null,null,null,"GBS","GOODBODY STOCK BROKERS",null,null,null,null,"GAM","GAM FUND MANAGEMENT LIMITED"]
[null,null,null,null,null,null,null,null,null,null,null,"GCI","THE GRISWOLD COMPANY INC",null,null,null,null,"GBS","GOODBODY STOCK BROKERS"]
[null,null,null,null,null,null,null,null,null,null,null,"GCM","GREENWICH CAPITAL",null,null,null,null,"GCI","THE GRISWOLD COMPANY INC"]
[null,null,null,null,null,null,null,null,null,null,null,"GEL","GARBAN EQUITIES",null,null,null,null,"GCM","GREENWICH CAPITAL"]
[null,null,null,null,null,null,null,null,null,null,null,"GEM","GEMINA",null,null,null,null,"GEL","GARBAN EQUITIES"]
[null,null,null,null,null,null,null,null,null,null,null,"GEN","CANACCORD GENUITY",null,null,null,null,"GEM","GEMINA"]
[null,null,null,null,null,null,null,null,null,null,null,"GFI","GFI GROUP INC",null,null,null,null,"GEN","CANACCORD GENUITY"]
[null,null,null,null,null,null,null,null,null,null,null,"GGE","GIROZENTRALE GILBERT ELIO",null,null,null,null,"GFI","GFI GROUP INC"]
[null,null,null,null,null,null,null,null,null,null,null,"GGG","GUGGENHEIM CAPITAL MARKETS",null,null,null,null,"GGE","GIROZENTRALE GILBERT ELIO"]
[null,null,null,null,null,null,null,null,null,null,null,"GGS","GK GOH SECURITES LTD",null,null,null,null,"GGG","GUGGENHEIM CAPITAL MARKETS"]
[null,null,null,null,null,null,null,null,null,null,null,"GHS","GLOBAL HUNTER SECURITIES",null,null,null,null,"GGS","GK GOH SECURITES LTD"]
[null,null,null,null,null,null,null,null,null,null,null,"GIF","GIFU BANK",null,null,null,null,"GHS","GLOBAL HUNTER SECURITIES"]
[null,null,null,null,null,null,null,null,null,null,null,"GK","<OLD> CIMB-GK (HK)",null,null,null,null,"GIF","GIFU BANK"]
[null,null,null,null,null,null,null,null,null,null,null,"GKM","GERARD KLAUER MATTISON &",null,null,null,null,"GK","<OLD> CIMB-GK (HK)"]
[null,null,null,null,null,null,null,null,null,null,null,"GLC","GLEACHER ＆ COMPANY",null,null,null,null,"GKM","GERARD KLAUER MATTISON &"]
[null,null,null,null,null,null,null,null,null,null,null,"GM","GUINNESS MAHON",null,null,null,null,"GLC","GLEACHER ＆ COMPANY"]
[null,null,null,null,null,null,null,null,null,null,null,"GMP","GMP SECURITIES LLC",null,null,null,null,"GM","GUINNESS MAHON"]
[null,null,null,null,null,null,null,null,null,null,null,"GN","GERRARD AND NATIONAL SECURI",null,null,null,null,"GMP","GMP SECURITIES LLC"]
[null,null,null,null,null,null,null,null,null,null,null,"GNA","GENA SECURITIES",null,null,null,null,"GN","GERRARD AND NATIONAL SECURI"]
[null,null,null,null,null,null,null,null,null,null,null,"GNG","GREENWICH NATWEST GILTS",null,null,null,null,"GNA","GENA SECURITIES"]
[null,null,null,null,null,null,null,null,null,null,null,"GOG","GOLUB OFFSHORE GP LTD",null,null,null,null,"GNG","GREENWICH NATWEST GILTS"]
[null,null,null,null,null,null,null,null,null,null,null,"GP","GREAT PACIFIC",null,null,null,null,"GOG","GOLUB OFFSHORE GP LTD"]
[null,null,null,null,null,null,null,null,null,null,null,"GPM","GRUPO MONEDA, S.A.DE C.V.",null,null,null,null,"GP","GREAT PACIFIC"]
[null,null,null,null,null,null,null,null,null,null,null,"GRF","GRIFFIN,KUBIK,ETC. INC",null,null,null,null,"GPM","GRUPO MONEDA, S.A.DE C.V."]
[null,null,null,null,null,null,null,null,null,null,null,"GRM","GREENWELL MONTAGU",null,null,null,null,"GRF","GRIFFIN,KUBIK,ETC. INC"]
[null,null,null,null,null,null,null,null,null,null,null,"GS","GOLDMAN SACHS",null,null,null,null,"GRM","GREENWELL MONTAGU"]
[null,null,null,null,null,null,null,null,null,null,null,"GSA","GREEN STREET TRADING",null,null,null,null,"GS","GOLDMAN SACHS"]
[null,null,null,null,null,null,null,null,null,null,null,"GSO","GSO CAPITAL PARTNERS LP",null,null,null,null,"GSA","GREEN STREET TRADING"]
[null,null,null,null,null,null,null,null,null,null,null,"GTA","GARANTIA",null,null,null,null,"GSO","GSO CAPITAL PARTNERS LP"]
[null,null,null,null,null,null,null,null,null,null,null,"GTJ","GUOTAI JUNAN SECURITIES",null,null,null,null,"GTA","GARANTIA"]
[null,null,null,null,null,null,null,null,null,null,null,"GUC","GUZMAN AND COMPANY",null,null,null,null,"GTJ","GUOTAI JUNAN SECURITIES"]
[null,null,null,null,null,null,null,null,null,null,null,"GUG","GUGGENHEIM",null,null,null,null,"GUC","GUZMAN AND COMPANY"]
[null,null,null,null,null,null,null,null,null,null,null,"HAA","HAUCK & AUFHAEUSER",null,null,null,null,"GUG","GUGGENHEIM"]
[null,null,null,null,null,null,null,null,null,null,null,"HAB","H.ALBERT DE BARY & CO",null,null,null,null,"HAA","HAUCK & AUFHAEUSER"]
[null,null,null,null,null,null,null,null,null,null,null,"HAI","HAITONG INTERNATIONAL SEC",null,null,null,null,"HAB","H.ALBERT DE BARY & CO"]
[null,null,null,null,null,null,null,null,null,null,null,"HAL","HALL SECURITIES",null,null,null,null,"HAI","HAITONG INTERNATIONAL SEC"]
[null,null,null,null,null,null,null,null,null,null,null,"HAM","HAMBRO CLEARING LTD.",null,null,null,null,"HAL","HALL SECURITIES"]
[null,null,null,null,null,null,null,null,null,null,null,"HAN","HARRIS NESBITT CORP",null,null,null,null,"HAM","HAMBRO CLEARING LTD."]
[null,null,null,null,null,null,null,null,null,null,null,"HAQ","HAMBRECHT & QUIST",null,null,null,null,"HAN","HARRIS NESBITT CORP"]
[null,null,null,null,null,null,null,null,null,null,null,"HBM","HSBC BANK MALAYSIA",null,null,null,null,"HAQ","HAMBRECHT & QUIST"]
[null,null,null,null,null,null,null,null,null,null,null,"HC","HOENIG & CO.INC",null,null,null,null,"HBM","HSBC BANK MALAYSIA"]
[null,null,null,null,null,null,null,null,null,null,null,"HCI","HENDERSON CROSTH WAIT",null,null,null,null,"HC","HOENIG & CO.INC"]
[null,null,null,null,null,null,null,null,null,null,null,"HCL","HARVEST CAPITAL LLC",null,null,null,null,"HCI","HENDERSON CROSTH WAIT"]
[null,null,null,null,null,null,null,null,null,null,null,"HCS","DBJ SECURITIES CO., LTD",null,null,null,null,"HCL","HARVEST CAPITAL LLC"]
[null,null,null,null,null,null,null,null,null,null,null,"HEA","HEIGHT SECURITIES LLC",null,null,null,null,"HCS","DBJ SECURITIES CO., LTD"]
[null,null,null,null,null,null,null,null,null,null,null,"HF","HELLER FINANCIAL",null,null,null,null,"HEA","HEIGHT SECURITIES LLC"]
[null,null,null,null,null,null,null,null,null,null,null,"HFS","HUNT FINANCIAL SECURITIES",null,null,null,null,"HF","HELLER FINANCIAL"]
[null,null,null,null,null,null,null,null,null,null,null,"HG","HOARE GOVETT",null,null,null,null,"HFS","HUNT FINANCIAL SECURITIES"]
[null,null,null,null,null,null,null,null,null,null,null,"HGL","HSBC GREENWELL",null,null,null,null,"HG","HOARE GOVETT"]
[null,null,null,null,null,null,null,null,null,null,null,"HGS","HEDGESERV",null,null,null,null,"HGL","HSBC GREENWELL"]
[null,null,null,null,null,null,null,null,null,null,null,"HIS","HANJIN INVESTMENT & SECS",null,null,null,null,"HGS","HEDGESERV"]
[null,null,null,null,null,null,null,null,null,null,null,"HLB","HONG LEONG INVESTMENT BANK",null,null,null,null,"HIS","HANJIN INVESTMENT & SECS"]
[null,null,null,null,null,null,null,null,null,null,null,"HLI","HONG LEONG ISLAMIC BANK",null,null,null,null,"HLB","HONG LEONG INVESTMENT BANK"]
[null,null,null,null,null,null,null,null,null,null,null,"HND","HINODE SEC.",null,null,null,null,"HLI","HONG LEONG ISLAMIC BANK"]
[null,null,null,null,null,null,null,null,null,null,null,"HON","HONG LEONG BANK",null,null,null,null,"HND","HINODE SEC."]
[null,null,null,null,null,null,null,null,null,null,null,"HPL","HARTLEY POYNTON LIMITED",null,null,null,null,"HON","HONG LEONG BANK"]
[null,null,null,null,null,null,null,null,null,null,null,"HS","HANSHIN SECURITIES",null,null,null,null,"HPL","HARTLEY POYNTON LIMITED"]
[null,null,null,null,null,null,null,null,null,null,null,"HSB","HSBC SECURITIES INC",null,null,null,null,"HS","HANSHIN SECURITIES"]
[null,null,null,null,null,null,null,null,null,null,null,"HSBC","HSBC SECURITIES",null,null,null,null,"HSB","HSBC SECURITIES INC"]
[null,null,null,null,null,null,null,null,null,null,null,"HSI","HILLTOP SECURITIES INC.",null,null,null,null,"HSBC","HSBC SECURITIES"]
[null,null,null,null,null,null,null,null,null,null,null,"HSK","HSBC BANK",null,null,null,null,"HSI","HILLTOP SECURITIES INC."]
[null,null,null,null,null,null,null,null,null,null,null,"HTB","HSBC TRINKAUS & BURKHARDT A",null,null,null,null,"HSK","HSBC BANK"]
[null,null,null,null,null,null,null,null,null,null,null,"HTF","HUATAI FINANCIAL HOLDINGS",null,null,null,null,"HTB","HSBC TRINKAUS & BURKHARDT A"]
[null,null,null,null,null,null,null,null,null,null,null,"HVA","HELVEA",null,null,null,null,"HTF","HUATAI FINANCIAL HOLDINGS"]
[null,null,null,null,null,null,null,null,null,null,null,"HW","HWANG-DBS SECURITIES",null,null,null,null,"HVA","HELVEA"]
[null,null,null,null,null,null,null,null,null,null,null,"HWA","HANWHA SECURITIES",null,null,null,null,"HW","HWANG-DBS SECURITIES"]
[null,null,null,null,null,null,null,null,null,null,null,"HWL","HOWARD, WEIL, LABOUSSE",null,null,null,null,"HWA","HANWHA SECURITIES"]
[null,null,null,null,null,null,null,null,null,null,null,"HYS","HYUNDAI SECURITIES CO.,LT",null,null,null,null,"HWL","HOWARD, WEIL, LABOUSSE"]
[null,null,null,null,null,null,null,null,null,null,null,"HYU","HYUNDAI SECURITIES",null,null,null,null,"HYS","HYUNDAI SECURITIES CO.,LT"]
[null,null,null,null,null,null,null,null,null,null,null,"HYV","BAYERISCHE HYPO UND VERIS L",null,null,null,null,"HYU","HYUNDAI SECURITIES"]
[null,null,null,null,null,null,null,null,null,null,null,"IAH","AFFIN ISLAMIC BANK BERHAD",null,null,null,null,"HYV","BAYERISCHE HYPO UND VERIS L"]
[null,null,null,null,null,null,null,null,null,null,null,"IBI","IBJ INT L",null,null,null,null,"IAH","AFFIN ISLAMIC BANK BERHAD"]
[null,null,null,null,null,null,null,null,null,null,null,"IBR","INTERACTIVE BROKERS",null,null,null,null,"IBI","IBJ INT L"]
[null,null,null,null,null,null,null,null,null,null,null,"ICA","ICAP ELECTRONIC BROKING LLC",null,null,null,null,"IBR","INTERACTIVE BROKERS"]
[null,null,null,null,null,null,null,null,null,null,null,"ICB","IND&COMMERCIAL BK OF CHINA",null,null,null,null,"ICA","ICAP ELECTRONIC BROKING LLC"]
[null,null,null,null,null,null,null,null,null,null,null,"ICC","ICAP CORPORATES",null,null,null,null,"ICB","IND&COMMERCIAL BK OF CHINA"]
[null,null,null,null,null,null,null,null,null,null,null,"ICF","IND AND COMM BK CHN FIN SER",null,null,null,null,"ICC","ICAP CORPORATES"]
[null,null,null,null,null,null,null,null,null,null,null,"ICH","ICHIYOSHI SEC",null,null,null,null,"ICF","IND AND COMM BK CHN FIN SER"]
[null,null,null,null,null,null,null,null,null,null,null,"ICI","ICICI SECURITIES LIMITED",null,null,null,null,"ICH","ICHIYOSHI SEC"]
[null,null,null,null,null,null,null,null,null,null,null,"ICL","ISI CAPITAL, LLC",null,null,null,null,"ICI","ICICI SECURITIES LIMITED"]
[null,null,null,null,null,null,null,null,null,null,null,"ICM","ING CAPITAL MARKETS",null,null,null,null,"ICL","ISI CAPITAL, LLC"]
[null,null,null,null,null,null,null,null,null,null,null,"IDF","IDFC BANK LIMITED",null,null,null,null,"ICM","ING CAPITAL MARKETS"]
[null,null,null,null,null,null,null,null,null,null,null,"IEB","IEBA TRUST",null,null,null,null,"IDF","IDFC BANK LIMITED"]
[null,null,null,null,null,null,null,null,null,null,null,"IFC","INTL FCSTONE",null,null,null,null,"IEB","IEBA TRUST"]
[null,null,null,null,null,null,null,null,null,null,null,"IFF","IFF",null,null,null,null,"IFC","INTL FCSTONE"]
[null,null,null,null,null,null,null,null,null,null,null,"IIL","INDIA INFOLINE LTD",null,null,null,null,"IFF","IFF"]
[null,null,null,null,null,null,null,null,null,null,null,"IJL","INTERSTATE JOHNSON LANE",null,null,null,null,"IIL","INDIA INFOLINE LTD"]
[null,null,null,null,null,null,null,null,null,null,null,"IMI","BANCA IMI",null,null,null,null,"IJL","INTERSTATE JOHNSON LANE"]
[null,null,null,null,null,null,null,null,null,null,null,"IMP","IMPERIAL CAPITAL",null,null,null,null,"IMI","BANCA IMI"]
[null,null,null,null,null,null,null,null,null,null,null,"INB","INVESTEC BANK PLC",null,null,null,null,"IMP","IMPERIAL CAPITAL"]
[null,null,null,null,null,null,null,null,null,null,null,"INF","ING FINANCIAL MARKETS LLC",null,null,null,null,"INB","INVESTEC BANK PLC"]
[null,null,null,null,null,null,null,null,null,null,null,"ING","ING BANK",null,null,null,null,"INF","ING FINANCIAL MARKETS LLC"]
[null,null,null,null,null,null,null,null,null,null,null,"INS","INVESTEC SECURITIES LTD",null,null,null,null,"ING","ING BANK"]
[null,null,null,null,null,null,null,null,null,null,null,"INT","INTESA SANPAOLO S.P.A.",null,null,null,null,"INS","INVESTEC SECURITIES LTD"]
[null,null,null,null,null,null,null,null,null,null,null,"INV","INVESTCORP S.A.",null,null,null,null,"INT","INTESA SANPAOLO S.P.A."]
[null,null,null,null,null,null,null,null,null,null,null,"IS7","INSTINET NON-JP",null,null,null,null,"INV","INVESTCORP S.A."]
[null,null,null,null,null,null,null,null,null,null,null,"ISB","ICBC STANDARD BANK",null,null,null,null,"IS7","INSTINET NON-JP"]
[null,null,null,null,null,null,null,null,null,null,null,"ISF","ISI FINANCIAL GROUP INC",null,null,null,null,"ISB","ICBC STANDARD BANK"]
[null,null,null,null,null,null,null,null,null,null,null,"ISI","INTERNATIONAL STRATEGY&INVE",null,null,null,null,"ISF","ISI FINANCIAL GROUP INC"]
[null,null,null,null,null,null,null,null,null,null,null,"ISM","BANK ISLAM",null,null,null,null,"ISI","INTERNATIONAL STRATEGY&INVE"]
[null,null,null,null,null,null,null,null,null,null,null,"ISN","INSTINET",null,null,null,null,"ISM","BANK ISLAM"]
[null,null,null,null,null,null,null,null,null,null,null,"ISS","IS YATIRIM MENKUL DEGERLER",null,null,null,null,"ISN","INSTINET"]
[null,null,null,null,null,null,null,null,null,null,null,"ITG","INVESTMENT TECHNOLOGY GROUP",null,null,null,null,"ISS","IS YATIRIM MENKUL DEGERLER"]
[null,null,null,null,null,null,null,null,null,null,null,"ITU","ITAU ASIA SECURITIES LIMIT",null,null,null,null,"ITG","INVESTMENT TECHNOLOGY GROUP"]
[null,null,null,null,null,null,null,null,null,null,null,"IVS","INVESTEC BANK",null,null,null,null,"ITU","ITAU ASIA SECURITIES LIMIT"]
[null,null,null,null,null,null,null,null,null,null,null,"JAA","JONES & ASSOCIATES,NEW YORK",null,null,null,null,"IVS","INVESTEC BANK"]
[null,null,null,null,null,null,null,null,null,null,null,"JAM","J.P.MORGAN ASSET MANAGEMENT",null,null,null,null,"JAA","JONES & ASSOCIATES,NEW YORK"]
[null,null,null,null,null,null,null,null,null,null,null,"JAN","JANNEY MONTGOMERY SCOTT",null,null,null,null,"JAM","J.P.MORGAN ASSET MANAGEMENT"]
[null,null,null,null,null,null,null,null,null,null,null,"JAS","JANE STREET",null,null,null,null,"JAN","JANNEY MONTGOMERY SCOTT"]
[null,null,null,null,null,null,null,null,null,null,null,"JB","JULIUS BAR",null,null,null,null,"JAS","JANE STREET"]
[null,null,null,null,null,null,null,null,null,null,null,"JBC","JB CAPITAL MARKETS",null,null,null,null,"JB","JULIUS BAR"]
[null,null,null,null,null,null,null,null,null,null,null,"JBT","JAPAN BANKERS TRUST COMPA",null,null,null,null,"JBC","JB CAPITAL MARKETS"]
[null,null,null,null,null,null,null,null,null,null,null,"JBW","J B WERE & SON",null,null,null,null,"JBT","JAPAN BANKERS TRUST COMPA"]
[null,null,null,null,null,null,null,null,null,null,null,"JCV","J. CHEUVREUX D. BE VIRIUE",null,null,null,null,"JBW","J B WERE & SON"]
[null,null,null,null,null,null,null,null,null,null,null,"JEF","JEFFERIES&CO",null,null,null,null,"JCV","J. CHEUVREUX D. BE VIRIUE"]
[null,null,null,null,null,null,null,null,null,null,null,"JF","JARDINE FLEMING",null,null,null,null,"JEF","JEFFERIES&CO"]
[null,null,null,null,null,null,null,null,null,null,null,"JFA","JF APEX",null,null,null,null,"JF","JARDINE FLEMING"]
[null,null,null,null,null,null,null,null,null,null,null,"JIS","JIS",null,null,null,null,"JFA","JF APEX"]
[null,null,null,null,null,null,null,null,null,null,null,"JL","JESUP & LAMONT DIV/EAGLE",null,null,null,null,"JIS","JIS"]
[null,null,null,null,null,null,null,null,null,null,null,"JMC","JMC",null,null,null,null,"JL","JESUP & LAMONT DIV/EAGLE"]
[null,null,null,null,null,null,null,null,null,null,null,"JMF","JM FINN&CO",null,null,null,null,"JMC","JMC"]
[null,null,null,null,null,null,null,null,null,null,null,"JMP","JMP SECURITIES",null,null,null,null,"JMF","JM FINN&CO"]
[null,null,null,null,null,null,null,null,null,null,null,"JMS","J.M. SASSOON",null,null,null,null,"JMP","JMP SECURITIES"]
[null,null,null,null,null,null,null,null,null,null,null,"JNK","JNK SECURITIES",null,null,null,null,"JMS","J.M. SASSOON"]
[null,null,null,null,null,null,null,null,null,null,null,"JOH","JOHNAN SHINKIN",null,null,null,null,"JNK","JNK SECURITIES"]
[null,null,null,null,null,null,null,null,null,null,null,"JPC","JP MORGAN CLEARING",null,null,null,null,"JOH","JOHNAN SHINKIN"]
[null,null,null,null,null,null,null,null,null,null,null,"JPL","JP MORGAN CHASE BANK (LONDO",null,null,null,null,"JPC","JP MORGAN CLEARING"]
[null,null,null,null,null,null,null,null,null,null,null,"JPM","J.P. MORGAN",null,null,null,null,"JPL","JP MORGAN CHASE BANK (LONDO"]
[null,null,null,null,null,null,null,null,null,null,null,"JRC","JOHNSON RICE & COMPANY L.L.",null,null,null,null,"JPM","J.P. MORGAN"]
[null,null,null,null,null,null,null,null,null,null,null,"JSE","JANE STREET EXECUTION SERVI",null,null,null,null,"JRC","JOHNSON RICE & COMPANY L.L."]
[null,null,null,null,null,null,null,null,null,null,null,"JSW","JORDAN SANDMAN WERE LTD.",null,null,null,null,"JSE","JANE STREET EXECUTION SERVI"]
[null,null,null,null,null,null,null,null,null,null,null,"JTI","JONES TRADING INSTITUTIONAL",null,null,null,null,"JSW","JORDAN SANDMAN WERE LTD."]
[null,null,null,null,null,null,null,null,null,null,null,"JWC","JW CHARLES SECURITIES INC",null,null,null,null,"JTI","JONES TRADING INSTITUTIONAL"]
[null,null,null,null,null,null,null,null,null,null,null,"KA","KITCAT & AITKEN & CO.",null,null,null,null,"JWC","JW CHARLES SECURITIES INC"]
[null,null,null,null,null,null,null,null,null,null,null,"KAF","KAF EQUITIES SDN BHD",null,null,null,null,"KA","KITCAT & AITKEN & CO."]
[null,null,null,null,null,null,null,null,null,null,null,"KAM","KANEMAN SECURITIES",null,null,null,null,"KAF","KAF EQUITIES SDN BHD"]
[null,null,null,null,null,null,null,null,null,null,null,"KAS","KAS-ASSOCIATIE-CVA(BK)",null,null,null,null,"KAM","KANEMAN SECURITIES"]
[null,null,null,null,null,null,null,null,null,null,null,"KBC","KBC FINANCIAL",null,null,null,null,"KAS","KAS-ASSOCIATIE-CVA(BK)"]
[null,null,null,null,null,null,null,null,null,null,null,"KBI","DRESDNER KLEINWORT BENSON",null,null,null,null,"KBC","KBC FINANCIAL"]
[null,null,null,null,null,null,null,null,null,null,null,"KBL","KBL",null,null,null,null,"KBI","DRESDNER KLEINWORT BENSON"]
[null,null,null,null,null,null,null,null,null,null,null,"KBS","KBC SECURITIES N.V.",null,null,null,null,"KBL","KBL"]
[null,null,null,null,null,null,null,null,null,null,null,"KBW","KEEFE BRUYETTE&WOODS",null,null,null,null,"KBS","KBC SECURITIES N.V."]
[null,null,null,null,null,null,null,null,null,null,null,"KCG","KCG AMERICAS LLC",null,null,null,null,"KBW","KEEFE BRUYETTE&WOODS"]
[null,null,null,null,null,null,null,null,null,null,null,"KCL","KEPLER CAPITAL MARKETS",null,null,null,null,"KCG","KCG AMERICAS LLC"]
[null,null,null,null,null,null,null,null,null,null,null,"KCM","KEYBANC CAPITAL MARKETS",null,null,null,null,"KCL","KEPLER CAPITAL MARKETS"]
[null,null,null,null,null,null,null,null,null,null,null,"KDB","KDB SECURITIES CO.,LTD.",null,null,null,null,"KCM","KEYBANC CAPITAL MARKETS"]
[null,null,null,null,null,null,null,null,null,null,null,"KDT","KREDIET BANK",null,null,null,null,"KDB","KDB SECURITIES CO.,LTD."]
[null,null,null,null,null,null,null,null,null,null,null,"KFH","KUWAIT FINANCE HOUSE",null,null,null,null,"KDT","KREDIET BANK"]
[null,null,null,null,null,null,null,null,null,null,null,"KFP","KBC FINANCIAL PRODUCT",null,null,null,null,"KFH","KUWAIT FINANCE HOUSE"]
[null,null,null,null,null,null,null,null,null,null,null,"KGI","KGI SECURITIES",null,null,null,null,"KFP","KBC FINANCIAL PRODUCT"]
[null,null,null,null,null,null,null,null,null,null,null,"KGS","KLEIWORT GRIEVESON & CO",null,null,null,null,"KGI","KGI SECURITIES"]
[null,null,null,null,null,null,null,null,null,null,null,"KIM","KIMSG",null,null,null,null,"KGS","KLEIWORT GRIEVESON & CO"]
[null,null,null,null,null,null,null,null,null,null,null,"KIN","KINIGHT EQUITY MARKETS LP",null,null,null,null,"KIM","KIMSG"]
[null,null,null,null,null,null,null,null,null,null,null,"KIS","KIS",null,null,null,null,"KIN","KINIGHT EQUITY MARKETS LP"]
[null,null,null,null,null,null,null,null,null,null,null,"KJC","UOB KAY HIAN",null,null,null,null,"KIS","KIS"]
[null,null,null,null,null,null,null,null,null,null,null,"KKS","MU MORGAN STANLEY",null,null,null,null,"KJC","UOB KAY HIAN"]
[null,null,null,null,null,null,null,null,null,null,null,"KNC","KEMPEN AND CO.",null,null,null,null,"KKS","MU MORGAN STANLEY"]
[null,null,null,null,null,null,null,null,null,null,null,"KNG","KNIGHT SECURITIES",null,null,null,null,"KL;CASHDUMMY","KL;CASHDUMMY"]
[null,null,null,null,null,null,null,null,null,null,null,"KNK","KENANGA INVESTMENT BANK",null,null,null,null,"KNC","KEMPEN AND CO."]
[null,null,null,null,null,null,null,null,null,null,null,"KNS","KNIGHT CAPITAL",null,null,null,null,"KNG","KNIGHT SECURITIES"]
[null,null,null,null,null,null,null,null,null,null,null,"KOP","KANSALLIS OSAKE PANKKI",null,null,null,null,"KNK","KENANGA INVESTMENT BANK"]
[null,null,null,null,null,null,null,null,null,null,null,"KOS","KOSEI SECURITIES",null,null,null,null,"KNS","KNIGHT CAPITAL"]
[null,null,null,null,null,null,null,null,null,null,null,"KOT","KOTAK SECURITIES LTD",null,null,null,null,"KOP","KANSALLIS OSAKE PANKKI"]
[null,null,null,null,null,null,null,null,null,null,null,"KP","KIDDER PEABODY & CO",null,null,null,null,"KOS","KOSEI SECURITIES"]
[null,null,null,null,null,null,null,null,null,null,null,"KPH","KBC PEEL HUNT",null,null,null,null,"KOT","KOTAK SECURITIES LTD"]
[null,null,null,null,null,null,null,null,null,null,null,"KRY","KERRY SECURITIES LTD",null,null,null,null,"KP","KIDDER PEABODY & CO"]
[null,null,null,null,null,null,null,null,null,null,null,"KSK","KSK",null,null,null,null,"KPH","KBC PEEL HUNT"]
[null,null,null,null,null,null,null,null,null,null,null,"KTB","CHEMICAL TRUST",null,null,null,null,"KRY","KERRY SECURITIES LTD"]
[null,null,null,null,null,null,null,null,null,null,null,"KTN","KANTONALBANK",null,null,null,null,"KSK","KSK"]
[null,null,null,null,null,null,null,null,null,null,null,"KTT","KOKUSAI TOUSIN TOUSIKOMON",null,null,null,null,"KTB","CHEMICAL TRUST"]
[null,null,null,null,null,null,null,null,null,null,null,"KYO","KYOKUTOH SEC",null,null,null,null,"KTN","KANTONALBANK"]
[null,null,null,null,null,null,null,null,null,null,null,"LAR","LARRAIN VIAL",null,null,null,null,"KTT","KOKUSAI TOUSIN TOUSIKOMON"]
[null,null,null,null,null,null,null,null,null,null,null,"LAS","LINK ASSET SERVICES",null,null,null,null,"KYO","KYOKUTOH SEC"]
[null,null,null,null,null,null,null,null,null,null,null,"LAZ","LAZARD",null,null,null,null,"LAR","LARRAIN VIAL"]
[null,null,null,null,null,null,null,null,null,null,null,"LB","LEHMAN BROTHERS",null,null,null,null,"LAS","LINK ASSET SERVICES"]
[null,null,null,null,null,null,null,null,null,null,null,"LBR","LIBERUM",null,null,null,null,"LAZ","LAZARD"]
[null,null,null,null,null,null,null,null,null,null,null,"LBT","LADENBURG THALMANN & CO INC",null,null,null,null,"LB","LEHMAN BROTHERS"]
[null,null,null,null,null,null,null,null,null,null,null,"LC","LOOP CAPITAL MARKETS",null,null,null,null,"LBR","LIBERUM"]
[null,null,null,null,null,null,null,null,null,null,null,"LCM","LAZARD CAPITAL MARKETS",null,null,null,null,"LBT","LADENBURG THALMANN & CO INC"]
[null,null,null,null,null,null,null,null,null,null,null,"LEE","LEERINK SWANN AND COMPANY",null,null,null,null,"LC","LOOP CAPITAL MARKETS"]
[null,null,null,null,null,null,null,null,null,null,null,"LEH","LEHMAN BROTHERS SECURITIES",null,null,null,null,"LCM","LAZARD CAPITAL MARKETS"]
[null,null,null,null,null,null,null,null,null,null,null,"LEK","LEK SECURITIES CORPORATION",null,null,null,null,"LEE","LEERINK SWANN AND COMPANY"]
[null,null,null,null,null,null,null,null,null,null,null,"LGB","LONGBOW SECURITIES LLC",null,null,null,null,"LEH","LEHMAN BROTHERS SECURITIES"]
[null,null,null,null,null,null,null,null,null,null,null,"LIB","LIBERUM CAPITAL LIMITED",null,null,null,null,"LEK","LEK SECURITIES CORPORATION"]
[null,null,null,null,null,null,null,null,null,null,null,"LIP","LIPPO SECURITIES",null,null,null,null,"LGB","LONGBOW SECURITIES LLC"]
[null,null,null,null,null,null,null,null,null,null,null,"LIT","LIT AMERICA,INC",null,null,null,null,"LIB","LIBERUM CAPITAL LIMITED"]
[null,null,null,null,null,null,null,null,null,null,null,"LJR","LYNCH JONES & RYAN",null,null,null,null,"LIP","LIPPO SECURITIES"]
[null,null,null,null,null,null,null,null,null,null,null,"LKP","LKP SECURITIES LTD",null,null,null,null,"LIT","LIT AMERICA,INC"]
[null,null,null,null,null,null,null,null,null,null,null,"LKY","LG SECURITIES CO.,LTD",null,null,null,null,"LJR","LYNCH JONES & RYAN"]
[null,null,null,null,null,null,null,null,null,null,null,"LLOYDS","LLOYDS TSB",null,null,null,null,"LKP","LKP SECURITIES LTD"]
[null,null,null,null,null,null,null,null,null,null,null,"LMW","LOVETT, MITCHELL, WEBB &",null,null,null,null,"LKY","LG SECURITIES CO.,LTD"]
[null,null,null,null,null,null,null,null,null,null,null,"LOU","LOUIS CAPITAL MARKETS",null,null,null,null,"LLOYDS","LLOYDS TSB"]
[null,null,null,null,null,null,null,null,null,null,null,"LPC","LAURENCE, PRUST & CO",null,null,null,null,"LMW","LOVETT, MITCHELL, WEBB &"]
[null,null,null,null,null,null,null,null,null,null,null,"LPL","LIBERTAS PARTNERS LLC",null,null,null,null,"LOU","LOUIS CAPITAL MARKETS"]
[null,null,null,null,null,null,null,null,null,null,null,"LQN","LIQUIDNET EUROPE LIMITED",null,null,null,null,"LPC","LAURENCE, PRUST & CO"]
[null,null,null,null,null,null,null,null,null,null,null,"LSI","LATINVEST SECURITIES, INC",null,null,null,null,"LPL","LIBERTAS PARTNERS LLC"]
[null,null,null,null,null,null,null,null,null,null,null,"LTS","WARBURG DILLON READSECURI",null,null,null,null,"LQN","LIQUIDNET EUROPE LIMITED"]
[null,null,null,null,null,null,null,null,null,null,null,"LUM","LUMINEX TRADING & ANALYTICS",null,null,null,null,"LSI","LATINVEST SECURITIES, INC"]
[null,null,null,null,null,null,null,null,null,null,null,"LWS","LINWAR SECURITIES PTY LTD",null,null,null,null,"LTS","WARBURG DILLON READSECURI"]
[null,null,null,null,null,null,null,null,null,null,null,"MAA","MARKETAXESS",null,null,null,null,"LUM","LUMINEX TRADING & ANALYTICS"]
[null,null,null,null,null,null,null,null,null,null,null,"MAB","MABON SECURITIES CORP",null,null,null,null,"LWS","LINWAR SECURITIES PTY LTD"]
[null,null,null,null,null,null,null,null,null,null,null,"MAC","MACQUARIE SECURITIES",null,null,null,null,"MAA","MARKETAXESS"]
[null,null,null,null,null,null,null,null,null,null,null,"MAE","MAEDA SECURITIES",null,null,null,null,"MAB","MABON SECURITIES CORP"]
[null,null,null,null,null,null,null,null,null,null,null,"MAF","MARUFUKU SECURITIES",null,null,null,null,"MAC","MACQUARIE SECURITIES"]
[null,null,null,null,null,null,null,null,null,null,null,"MAK","MARUKIN SECURITIES",null,null,null,null,"MAE","MAEDA SECURITIES"]
[null,null,null,null,null,null,null,null,null,null,null,"MAN","MANDIRI SEKURITAS",null,null,null,null,"MAF","MARUFUKU SECURITIES"]
[null,null,null,null,null,null,null,null,null,null,null,"MAP","MAP SECURITIES",null,null,null,null,"MAK","MARUKIN SECURITIES"]
[null,null,null,null,null,null,null,null,null,null,null,"MAR","MARUHACHI SEC",null,null,null,null,"MAN","MANDIRI SEKURITAS"]
[null,null,null,null,null,null,null,null,null,null,null,"MAS","MARUSAN SECURITIES",null,null,null,null,"MAP","MAP SECURITIES"]
[null,null,null,null,null,null,null,null,null,null,null,"MAX","MAXWELL Y ESPINOSA",null,null,null,null,"MAR","MARUHACHI SEC"]
[null,null,null,null,null,null,null,null,null,null,null,"MAY","MALAYAN BANKING BERHAD",null,null,null,null,"MAS","MARUSAN SECURITIES"]
[null,null,null,null,null,null,null,null,null,null,null,"MB","MB",null,null,null,null,"MAX","MAXWELL Y ESPINOSA"]
[null,null,null,null,null,null,null,null,null,null,null,"MBB","MELLON BANK, N.A.",null,null,null,null,"MAY","MALAYAN BANKING BERHAD"]
[null,null,null,null,null,null,null,null,null,null,null,"MBG","MILLENIUM BROKERAGE GROUP",null,null,null,null,"MB","MB"]
[null,null,null,null,null,null,null,null,null,null,null,"MBI","MAYBANK ISLAMIC",null,null,null,null,"MBB","MELLON BANK, N.A."]
[null,null,null,null,null,null,null,null,null,null,null,"MBS","MITSUBISHI TRUST SECURITI",null,null,null,null,"MBG","MILLENIUM BROKERAGE GROUP"]
[null,null,null,null,null,null,null,null,null,null,null,"MCB","MACQUARIE BANK",null,null,null,null,"MBI","MAYBANK ISLAMIC"]
[null,null,null,null,null,null,null,null,null,null,null,"MCD","MCDONALDS & CO.",null,null,null,null,"MBS","MITSUBISHI TRUST SECURITI"]
[null,null,null,null,null,null,null,null,null,null,null,"MCH","MISCHLER FINANCIAL GROUP,",null,null,null,null,"MCB","MACQUARIE BANK"]
[null,null,null,null,null,null,null,null,null,null,null,"MCI","MCINTOSH & COMPANY LIMITE",null,null,null,null,"MCD","MCDONALDS & CO."]
[null,null,null,null,null,null,null,null,null,null,null,"MCQ","MACQUARIE CAPITAL INC",null,null,null,null,"MCH","MISCHLER FINANCIAL GROUP,"]
[null,null,null,null,null,null,null,null,null,null,null,"MDL","MIDLAND BANK",null,null,null,null,"MCI","MCINTOSH & COMPANY LIMITE"]
[null,null,null,null,null,null,null,null,null,null,null,"MDM","MIDLAND MONTAGU",null,null,null,null,"MCQ","MACQUARIE CAPITAL INC"]
[null,null,null,null,null,null,null,null,null,null,null,"MED","MEDIOBANCA S.P.A.",null,null,null,null,"MDL","MIDLAND BANK"]
[null,null,null,null,null,null,null,null,null,null,null,"MEP","MERIDIAN EQUITY PARTNERS,IN",null,null,null,null,"MDM","MIDLAND MONTAGU"]
[null,null,null,null,null,null,null,null,null,null,null,"MER","MERRILL LYNCH LTD",null,null,null,null,"MED","MEDIOBANCA S.P.A."]
[null,null,null,null,null,null,null,null,null,null,null,"MES","MESIROW FINANCE INC",null,null,null,null,"MEP","MERIDIAN EQUITY PARTNERS,IN"]
[null,null,null,null,null,null,null,null,null,null,null,"MET","METZLER",null,null,null,null,"MER","MERRILL LYNCH LTD"]
[null,null,null,null,null,null,null,null,null,null,null,"MFB","MAINFIRST BANK AG FRANKFURT",null,null,null,null,"MES","MESIROW FINANCE INC"]
[null,null,null,null,null,null,null,null,null,null,null,"MFC","MUFG FUND SERVICES（CAYMAN）",null,null,null,null,"MET","METZLER"]
[null,null,null,null,null,null,null,null,null,null,null,"MFG","MF GLOBAL",null,null,null,null,"MFB","MAINFIRST BANK AG FRANKFURT"]
[null,null,null,null,null,null,null,null,null,null,null,"MFK","MASSONAUD FONTENEY KERVER",null,null,null,null,"MFC","MUFG FUND SERVICES（CAYMAN）"]
[null,null,null,null,null,null,null,null,null,null,null,"MFR","MARIA FIORINI RAMIREZ SEC",null,null,null,null,"MFG","MF GLOBAL"]
[null,null,null,null,null,null,null,null,null,null,null,"MGT","MORGAN GRENFELL TRUST",null,null,null,null,"MFK","MASSONAUD FONTENEY KERVER"]
[null,null,null,null,null,null,null,null,null,null,null,"MI;CASHDUMMY","MI;CASHDUMMY",null,null,null,null,"MFR","MARIA FIORINI RAMIREZ SEC"]
[null,null,null,null,null,null,null,null,null,null,null,"MID","MIDWOOD SECURITIES",null,null,null,null,"MGT","MORGAN GRENFELL TRUST"]
[null,null,null,null,null,null,null,null,null,null,null,"MIL","MILLENNIUM ADVISORS LLC",null,null,null,null,"MID","MIDWOOD SECURITIES"]
[null,null,null,null,null,null,null,null,null,null,null,"MIP","MIZUHO INTL PLC",null,null,null,null,"MIL","MILLENNIUM ADVISORS LLC"]
[null,null,null,null,null,null,null,null,null,null,null,"MIR","MIRAE ASSET SECURITIES CO.L",null,null,null,null,"MIP","MIZUHO INTL PLC"]
[null,null,null,null,null,null,null,null,null,null,null,"MIRAE","MIRAE ASSET SECURITIES",null,null,null,null,"MIR","MIRAE ASSET SECURITIES CO.L"]
[null,null,null,null,null,null,null,null,null,null,null,"MIS","MUFJ INVESTOR SERVICES&BANK",null,null,null,null,"MIRAE","MIRAE ASSET SECURITIES"]
[null,null,null,null,null,null,null,null,null,null,null,"MIT","MUFG BANK, LTD.",null,null,null,null,"MIS","MUFJ INVESTOR SERVICES&BANK"]
[null,null,null,null,null,null,null,null,null,null,null,"MIZ","MIZUHO SECURITIES ASIA LIMI",null,null,null,null,"MIT","MUFG BANK, LTD."]
[null,null,null,null,null,null,null,null,null,null,null,"MK","MORGAN KEEGAN & CO. INC",null,null,null,null,"MIZ","MIZUHO SECURITIES ASIA LIMI"]
[null,null,null,null,null,null,null,null,null,null,null,"MKD","MAKINDO SECURITIES",null,null,null,null,"MK","MORGAN KEEGAN & CO. INC"]
[null,null,null,null,null,null,null,null,null,null,null,"MKM","MKM PARTNERS LLC",null,null,null,null,"MKD","MAKINDO SECURITIES"]
[null,null,null,null,null,null,null,null,null,null,null,"ML","BOFA SECURITIES",null,null,null,null,"MKM","MKM PARTNERS LLC"]
[null,null,null,null,null,null,null,null,null,null,null,"MLB","MALAYAN BANKING BHD",null,null,null,null,"ML","BOFA SECURITIES"]
[null,null,null,null,null,null,null,null,null,null,null,"MLC","MERRILL LYNCH PRO CLEARING",null,null,null,null,"MLB","MALAYAN BANKING BHD"]
[null,null,null,null,null,null,null,null,null,null,null,"MLP","ML PIERCE FENNER&SMITH",null,null,null,null,"MLC","MERRILL LYNCH PRO CLEARING"]
[null,null,null,null,null,null,null,null,null,null,null,"MLT","MILLER TABAK & CO",null,null,null,null,"MLP","ML PIERCE FENNER&SMITH"]
[null,null,null,null,null,null,null,null,null,null,null,"MOE","MOELIS & COMPANY",null,null,null,null,"MLT","MILLER TABAK & CO"]
[null,null,null,null,null,null,null,null,null,null,null,"MOT","MOTILAL OSWAL SECS LTD",null,null,null,null,"MOE","MOELIS & COMPANY"]
[null,null,null,null,null,null,null,null,null,null,null,"MRB","MIRABAUD SECURITIES LIMITED",null,null,null,null,"MOT","MOTILAL OSWAL SECS LTD"]
[null,null,null,null,null,null,null,null,null,null,null,"MS","MORGAN STANLEY",null,null,null,null,"MRB","MIRABAUD SECURITIES LIMITED"]
[null,null,null,null,null,null,null,null,null,null,null,"MSC","MASTERLINK SECURITIES CORP",null,null,null,null,"MS","MORGAN STANLEY"]
[null,null,null,null,null,null,null,null,null,null,null,"MSI","MONTROSE SECURITIES INTL",null,null,null,null,"MSC","MASTERLINK SECURITIES CORP"]
[null,null,null,null,null,null,null,null,null,null,null,"MSL","MORGAN STANLEY&CO,INT.PLC(L",null,null,null,null,"MSI","MONTROSE SECURITIES INTL"]
[null,null,null,null,null,null,null,null,null,null,null,"MSN","MORGAN STANLEY ,NY",null,null,null,null,"MSL","MORGAN STANLEY&CO,INT.PLC(L"]
[null,null,null,null,null,null,null,null,null,null,null,"MSS","MAYBANK INVESTMENT BANK",null,null,null,null,"MSN","MORGAN STANLEY ,NY"]
[null,null,null,null,null,null,null,null,null,null,null,"MT","MELLON TRUST",null,null,null,null,"MSS","MAYBANK INVESTMENT BANK"]
[null,null,null,null,null,null,null,null,null,null,null,"MTO","MITO SEC",null,null,null,null,"MT","MELLON TRUST"]
[null,null,null,null,null,null,null,null,null,null,null,"MTR","MTRUSTEE BERHAD",null,null,null,null,"MTO","MITO SEC"]
[null,null,null,null,null,null,null,null,null,null,null,"MTS","MITUI TRUST SECURITIES",null,null,null,null,"MTR","MTRUSTEE BERHAD"]
[null,null,null,null,null,null,null,null,null,null,null,"MUI","MUFJ IS&B LUX",null,null,null,null,"MTS","MITUI TRUST SECURITIES"]
[null,null,null,null,null,null,null,null,null,null,null,"MUS","MUSASHINO BANK",null,null,null,null,"MUI","MUFJ IS&B LUX"]
[null,null,null,null,null,null,null,null,null,null,null,"MUT","MITSUBISHI UFJ TRUST & BANK",null,null,null,null,"MUS","MUSASHINO BANK"]
[null,null,null,null,null,null,null,null,null,null,null,"MXG","MAXIM GROUP",null,null,null,null,"MUT","MITSUBISHI UFJ TRUST & BANK"]
[null,null,null,null,null,null,null,null,null,null,null,"MYS","MAYER & SCHWEITZER",null,null,null,null,"MXG","MAXIM GROUP"]
[null,null,null,null,null,null,null,null,null,null,null,"MZC","MIZUHO CORPORATE BANK",null,null,null,null,"MYS","MAYER & SCHWEITZER"]
[null,null,null,null,null,null,null,null,null,null,null,"MZH","MIZUHO HOLDINGS,INC",null,null,null,null,"MZC","MIZUHO CORPORATE BANK"]
[null,null,null,null,null,null,null,null,null,null,null,"MZS","MIZUHO SECURITIES",null,null,null,null,"MZH","MIZUHO HOLDINGS,INC"]
[null,null,null,null,null,null,null,null,null,null,null,"MZT","MIZUHO TRUST & BANKING",null,null,null,null,"MZS","MIZUHO SECURITIES"]
[null,null,null,null,null,null,null,null,null,null,null,"N08","NOMURA SEC INTNATL INC",null,null,null,null,"MZT","MIZUHO TRUST & BANKING"]
[null,null,null,null,null,null,null,null,null,null,null,"N18","INSTINET EUROPE LIMITED",null,null,null,null,"N08","NOMURA SEC INTNATL INC"]
[null,null,null,null,null,null,null,null,null,null,null,"N19","INSTINET PACIFIC LIMITED",null,null,null,null,"N18","INSTINET EUROPE LIMITED"]
[null,null,null,null,null,null,null,null,null,null,null,"N20","INSTINET SINGAPORE SERVICES",null,null,null,null,"N19","INSTINET PACIFIC LIMITED"]
[null,null,null,null,null,null,null,null,null,null,null,"N24","NOMURA FA & SEC. (IND) PRIV",null,null,null,null,"N20","INSTINET SINGAPORE SERVICES"]
[null,null,null,null,null,null,null,null,null,null,null,"N25","NOMURA FINANCIAL INV. (KOR)",null,null,null,null,"N24","NOMURA FA & SEC. (IND) PRIV"]
[null,null,null,null,null,null,null,null,null,null,null,"NAB","NATIONAL AUSTRALIA BANK",null,null,null,null,"N25","NOMURA FINANCIAL INV. (KOR)"]
[null,null,null,null,null,null,null,null,null,null,null,"NAI","NAKAI SECURITIES",null,null,null,null,"NAB","NATIONAL AUSTRALIA BANK"]
[null,null,null,null,null,null,null,null,null,null,null,"NAK","NAKAHARA SEC",null,null,null,null,"NAI","NAKAI SECURITIES"]
[null,null,null,null,null,null,null,null,null,null,null,"NAM","NOMURA ASSET MANAGEMENT",null,null,null,null,"NAK","NAKAHARA SEC"]
[null,null,null,null,null,null,null,null,null,null,null,"NAT","SMBC FRIEND SECURITIE",null,null,null,null,"NAM","NOMURA ASSET MANAGEMENT"]
[null,null,null,null,null,null,null,null,null,null,null,"NB","NATIONS BANK",null,null,null,null,"NAT","SMBC FRIEND SECURITIE"]
[null,null,null,null,null,null,null,null,null,null,null,"NBC","NATIONAL BANK OF CANADA FIN",null,null,null,null,"NB","NATIONS BANK"]
[null,null,null,null,null,null,null,null,null,null,null,"NBI","NOMURA BANK INTERNATIONAL",null,null,null,null,"NBC","NATIONAL BANK OF CANADA FIN"]
[null,null,null,null,null,null,null,null,null,null,null,"NBP","NATIXIS",null,null,null,null,"NBI","NOMURA BANK INTERNATIONAL"]
[null,null,null,null,null,null,null,null,null,null,null,"NBS","NBS",null,null,null,null,"NBP","NATIXIS"]
[null,null,null,null,null,null,null,null,null,null,null,"NCL","NBC CLEARING SERVICES INC.",null,null,null,null,"NBS","NBS"]
[null,null,null,null,null,null,null,null,null,null,null,"NCS","NORIN CHUKIN SECURITIES",null,null,null,null,"NCL","NBC CLEARING SERVICES INC."]
[null,null,null,null,null,null,null,null,null,null,null,"NDH","NEEDHAM",null,null,null,null,"NCS","NORIN CHUKIN SECURITIES"]
[null,null,null,null,null,null,null,null,null,null,null,"NED","NEDGROUP PRIVATEWEALTH STBR",null,null,null,null,"NDH","NEEDHAM"]
[null,null,null,null,null,null,null,null,null,null,null,"NEU","NEUBERGER & BERMAN",null,null,null,null,"NED","NEDGROUP PRIVATEWEALTH STBR"]
[null,null,null,null,null,null,null,null,null,null,null,"NFS","NATIONAL FINANCIAL SERVICES",null,null,null,null,"NEU","NEUBERGER & BERMAN"]
[null,null,null,null,null,null,null,null,null,null,null,"NIK","NIKKO SECURITIES",null,null,null,null,"NFS","NATIONAL FINANCIAL SERVICES"]
[null,null,null,null,null,null,null,null,null,null,null,"NIS","NIHON SECURITIES",null,null,null,null,"NIK","NIKKO SECURITIES"]
[null,null,null,null,null,null,null,null,null,null,null,"NKO","SMBC NIKKO SECURITIES INC.",null,null,null,null,"NIS","NIHON SECURITIES"]
[null,null,null,null,null,null,null,null,null,null,null,"NOMHK","NOMURA INTERNATIONAL",null,null,null,null,"NKO","SMBC NIKKO SECURITIES INC."]
[null,null,null,null,null,null,null,null,null,null,null,"NOMLN","NOMURA INTERNATIONAL",null,null,null,null,"NOMHK","NOMURA INTERNATIONAL"]
[null,null,null,null,null,null,null,null,null,null,null,"NOMSHK","NOMURA SECURITIES",null,null,null,null,"NOMLN","NOMURA INTERNATIONAL"]
[null,null,null,null,null,null,null,null,null,null,null,"NOMSTK","NOMURA SECURITIES",null,null,null,null,"NOMSHK","NOMURA SECURITIES"]
[null,null,null,null,null,null,null,null,null,null,null,"NOMTW","NOMURA SECURITIES TAIPEI",null,null,null,null,"NOMSTK","NOMURA SECURITIES"]
[null,null,null,null,null,null,null,null,null,null,null,"NOR","NORIN CENTRAL BANK",null,null,null,null,"NOMTW","NOMURA SECURITIES TAIPEI"]
[null,null,null,null,null,null,null,null,null,null,null,"NORDEA","NORDEA BANK",null,null,null,null,"NOR","NORIN CENTRAL BANK"]
[null,null,null,null,null,null,null,null,null,null,null,"NSC","N+1 SINGER CAPITAL MARKETS",null,null,null,null,"NORDEA","NORDEA BANK"]
[null,null,null,null,null,null,null,null,null,null,null,"NSD","NCB STOCKBROKERS DUBLIN",null,null,null,null,"NSC","N+1 SINGER CAPITAL MARKETS"]
[null,null,null,null,null,null,null,null,null,null,null,"NTC","NORTHERN TRUST COMPANY",null,null,null,null,"NSD","NCB STOCKBROKERS DUBLIN"]
[null,null,null,null,null,null,null,null,null,null,null,"NTCLON","NTCLON",null,null,null,null,"NTC","NORTHERN TRUST COMPANY"]
[null,null,null,null,null,null,null,null,null,null,null,"NUS","NUMIS SECURITIES LIMITED",null,null,null,null,"NTCLON","NTCLON"]
[null,null,null,null,null,null,null,null,null,null,null,"NWC","NATWEST CAPITAL MARKETS",null,null,null,null,"NUS","NUMIS SECURITIES LIMITED"]
[null,null,null,null,null,null,null,null,null,null,null,"OAS","OSK ASIA SECURITIES LIMITED",null,null,null,null,"NWC","NATWEST CAPITAL MARKETS"]
[null,null,null,null,null,null,null,null,null,null,null,"OCB","OVERSEAS CHINESE BANKING",null,null,null,null,"OAS","OSK ASIA SECURITIES LIMITED"]
[null,null,null,null,null,null,null,null,null,null,null,"OCT","OCTO FINANCES SA",null,null,null,null,"OCB","OVERSEAS CHINESE BANKING"]
[null,null,null,null,null,null,null,null,null,null,null,"ODB","ODDO BHF",null,null,null,null,"OCT","OCTO FINANCES SA"]
[null,null,null,null,null,null,null,null,null,null,null,"ODC","ODDO & CIE",null,null,null,null,"ODB","ODDO BHF"]
[null,null,null,null,null,null,null,null,null,null,null,"ODD","DEMAND FOR PURCHASE BY IS",null,null,null,null,"ODC","ODDO & CIE"]
[null,null,null,null,null,null,null,null,null,null,null,"ODE","ODEON CAPITAL GROUP LLC",null,null,null,null,"ODD","DEMAND FOR PURCHASE BY IS"]
[null,null,null,null,null,null,null,null,null,null,null,"ODO","ODDO SECURITIES PARIS",null,null,null,null,"ODE","ODEON CAPITAL GROUP LLC"]
[null,null,null,null,null,null,null,null,null,null,null,"OEN","TERA MENKUL DEGERLER A.S.",null,null,null,null,"ODO","ODDO SECURITIES PARIS"]
[null,null,null,null,null,null,null,null,null,null,null,"OKS","OKASAN SECURITIES",null,null,null,null,"OEN","TERA MENKUL DEGERLER A.S."]
[null,null,null,null,null,null,null,null,null,null,null,"OLI","OLIVETREE SECURITIES LTD",null,null,null,null,"OKS","OKASAN SECURITIES"]
[null,null,null,null,null,null,null,null,null,null,null,"OPH","OPPENHEIMER & CO INC",null,null,null,null,"OLI","OLIVETREE SECURITIES LTD"]
[null,null,null,null,null,null,null,null,null,null,null,"OPT","OPTIVER",null,null,null,null,"OPH","OPPENHEIMER & CO INC"]
[null,null,null,null,null,null,null,null,null,null,null,"ORD","ORD MINNETT",null,null,null,null,"OPT","OPTIVER"]
[null,null,null,null,null,null,null,null,null,null,null,"ORI","ORIEL SECURITIES",null,null,null,null,"ORD","ORD MINNETT"]
[null,null,null,null,null,null,null,null,null,null,null,"OSK","OSK INVESTMENT BANK BERHAD",null,null,null,null,"ORI","ORIEL SECURITIES"]
[null,null,null,null,null,null,null,null,null,null,null,"OTA","OTA LLC",null,null,null,null,"OSK","OSK INVESTMENT BANK BERHAD"]
[null,null,null,null,null,null,null,null,null,null,null,"OTH","OTHERS",null,null,null,null,"OTA","OTA LLC"]
[null,null,null,null,null,null,null,null,null,null,null,"OTR","OTR GLOBAL",null,null,null,null,"OTH","OTHERS"]
[null,null,null,null,null,null,null,null,null,null,null,"OYA","OYAK MENKUL DEGERELER A.S.",null,null,null,null,"OTR","OTR GLOBAL"]
[null,null,null,null,null,null,null,null,null,null,null,"PA","PHILIPPINE ASIA EQUITY SEC",null,null,null,null,"OYA","OYAK MENKUL DEGERELER A.S."]
[null,null,null,null,null,null,null,null,null,null,null,"PAC","BANCO BTG PACTUAL S.A.",null,null,null,null,"PA","PHILIPPINE ASIA EQUITY SEC"]
[null,null,null,null,null,null,null,null,null,null,null,"PAN","PANMURE GORDON & CO",null,null,null,null,"PAC","BANCO BTG PACTUAL S.A."]
[null,null,null,null,null,null,null,null,null,null,null,"PAP","PAREL PARIS",null,null,null,null,"PAN","PANMURE GORDON & CO"]
[null,null,null,null,null,null,null,null,null,null,null,"PAR","PARETO SECURITIES",null,null,null,null,"PAP","PAREL PARIS"]
[null,null,null,null,null,null,null,null,null,null,null,"PAV","PAVILION GLOBAL MARKETS LTD",null,null,null,null,"PAR","PARETO SECURITIES"]
[null,null,null,null,null,null,null,null,null,null,null,"PB","PUBLIC BANK SECURITIES",null,null,null,null,"PAV","PAVILION GLOBAL MARKETS LTD"]
[null,null,null,null,null,null,null,null,null,null,null,"PBB","PB SECURITIES SDN BHD",null,null,null,null,"PB","PUBLIC BANK SECURITIES"]
[null,null,null,null,null,null,null,null,null,null,null,"PBI","PBI SECURITIES",null,null,null,null,"PBB","PB SECURITIES SDN BHD"]
[null,null,null,null,null,null,null,null,null,null,null,"PBK","PUBLIC BANK",null,null,null,null,"PBI","PBI SECURITIES"]
[null,null,null,null,null,null,null,null,null,null,null,"PBS","PRUDENTIAL SECURITIES",null,null,null,null,"PBK","PUBLIC BANK"]
[null,null,null,null,null,null,null,null,null,null,null,"PBT","PRESCOTT BALL & TURBIN",null,null,null,null,"PBS","PRUDENTIAL SECURITIES"]
[null,null,null,null,null,null,null,null,null,null,null,"PCF","PRUDENTIAL CAPITAL FUNDIN",null,null,null,null,"PBT","PRESCOTT BALL & TURBIN"]
[null,null,null,null,null,null,null,null,null,null,null,"PCS","PCS SECURITIES",null,null,null,null,"PCF","PRUDENTIAL CAPITAL FUNDIN"]
[null,null,null,null,null,null,null,null,null,null,null,"PEH","PEEL HUNT",null,null,null,null,"PCS","PCS SECURITIES"]
[null,null,null,null,null,null,null,null,null,null,null,"PEN","PENSON FINANCIAL SERVICES",null,null,null,null,"PEH","PEEL HUNT"]
[null,null,null,null,null,null,null,null,null,null,null,"PEP","PICKERING ENERGY PARTNERS I",null,null,null,null,"PEN","PENSON FINANCIAL SERVICES"]
[null,null,null,null,null,null,null,null,null,null,null,"PER","PERSHING",null,null,null,null,"PEP","PICKERING ENERGY PARTNERS I"]
[null,null,null,null,null,null,null,null,null,null,null,"PET","PETERCAM",null,null,null,null,"PER","PERSHING"]
[null,null,null,null,null,null,null,null,null,null,null,"PG","PARMURE GORDON LONDON",null,null,null,null,"PET","PETERCAM"]
[null,null,null,null,null,null,null,null,null,null,null,"PGS","PEREGRINE SECURITIES",null,null,null,null,"PG","PARMURE GORDON LONDON"]
[null,null,null,null,null,null,null,null,null,null,null,"PHI","PHILLIP SECURITIES",null,null,null,null,"PGS","PEREGRINE SECURITIES"]
[null,null,null,null,null,null,null,null,null,null,null,"PHP","MEESPIERSON N.V.",null,null,null,null,"PHI","PHILLIP SECURITIES"]
[null,null,null,null,null,null,null,null,null,null,null,"PIB","PUBLIC ISLAMIC BANK",null,null,null,null,"PHP","MEESPIERSON N.V."]
[null,null,null,null,null,null,null,null,null,null,null,"PIC","PICTET & CIE",null,null,null,null,"PIB","PUBLIC ISLAMIC BANK"]
[null,null,null,null,null,null,null,null,null,null,null,"PIM","PIMCO",null,null,null,null,"PIC","PICTET & CIE"]
[null,null,null,null,null,null,null,null,null,null,null,"PIO","PICTET OVERSEAS INC",null,null,null,null,"PIM","PIMCO"]
[null,null,null,null,null,null,null,null,null,null,null,"PJC","PIPER JAFFRAY & CO",null,null,null,null,"PIO","PICTET OVERSEAS INC"]
[null,null,null,null,null,null,null,null,null,null,null,"PJH","PIPER JAFFRAY AND HOPWOOD",null,null,null,null,"PJC","PIPER JAFFRAY & CO"]
[null,null,null,null,null,null,null,null,null,null,null,"PNC","PNC CAPITAL MARKETS LLC",null,null,null,null,"PJH","PIPER JAFFRAY AND HOPWOOD"]
[null,null,null,null,null,null,null,null,null,null,null,"PND","PHILIPS & DREW",null,null,null,null,"PNC","PNC CAPITAL MARKETS LLC"]
[null,null,null,null,null,null,null,null,null,null,null,"PNS","PENSERRA",null,null,null,null,"PND","PHILIPS & DREW"]
[null,null,null,null,null,null,null,null,null,null,null,"POT","POTTER PARTNERS",null,null,null,null,"PNS","PENSERRA"]
[null,null,null,null,null,null,null,null,null,null,null,"POW","POTTER WARBURG",null,null,null,null,"POT","POTTER PARTNERS"]
[null,null,null,null,null,null,null,null,null,null,null,"PP","PHILEO, PEREGRINE SECURITIE",null,null,null,null,"POW","POTTER WARBURG"]
[null,null,null,null,null,null,null,null,null,null,null,"PPS","PIERPONT SECURITIES",null,null,null,null,"PP","PHILEO, PEREGRINE SECURITIE"]
[null,null,null,null,null,null,null,null,null,null,null,"PRA","PROBURSA INTERNATIONAL IN",null,null,null,null,"PPS","PIERPONT SECURITIES"]
[null,null,null,null,null,null,null,null,null,null,null,"PRI","PRINCERIDGE",null,null,null,null,"PRA","PROBURSA INTERNATIONAL IN"]
[null,null,null,null,null,null,null,null,null,null,null,"PRO","PROTOS STOCK BROKERS",null,null,null,null,"PRI","PRINCERIDGE"]
[null,null,null,null,null,null,null,null,null,null,null,"PS","PRYCE SECURITIES INC.",null,null,null,null,"PRO","PROTOS STOCK BROKERS"]
[null,null,null,null,null,null,null,null,null,null,null,"PSL","PATERSONS SECURITIES LTD",null,null,null,null,"PS","PRYCE SECURITIES INC."]
[null,null,null,null,null,null,null,null,null,null,null,"PT","PEREIRE TOD",null,null,null,null,"PSL","PATERSONS SECURITIES LTD"]
[null,null,null,null,null,null,null,null,null,null,null,"PTR","PETRA CAPITAL",null,null,null,null,"PT","PEREIRE TOD"]
[null,null,null,null,null,null,null,null,null,null,null,"PVB","PRIVATBANKEN LIMITED",null,null,null,null,"PTR","PETRA CAPITAL"]
[null,null,null,null,null,null,null,null,null,null,null,"PVL","PERUVAL S.A.",null,null,null,null,"PVB","PRIVATBANKEN LIMITED"]
[null,null,null,null,null,null,null,null,null,null,null,"PW","PAINE WEBBER",null,null,null,null,"PVL","PERUVAL S.A."]
[null,null,null,null,null,null,null,null,null,null,null,"PWY","PINAPTON WARGNY",null,null,null,null,"PW","PAINE WEBBER"]
[null,null,null,null,null,null,null,null,null,null,null,"RAB","RABO BANK",null,null,null,null,"PWY","PINAPTON WARGNY"]
[null,null,null,null,null,null,null,null,null,null,null,"RAIF","RAIFFEISEN AUSTRIA",null,null,null,null,"RAB","RABO BANK"]
[null,null,null,null,null,null,null,null,null,null,null,"RBC","ROYAL BANK OF CANADA",null,null,null,null,"RAIF","RAIFFEISEN AUSTRIA"]
[null,null,null,null,null,null,null,null,null,null,null,"RBCD","RBC DOMINION SECURITIES",null,null,null,null,"RBC","ROYAL BANK OF CANADA"]
[null,null,null,null,null,null,null,null,null,null,null,"RBJ","RBS SECURITIES",null,null,null,null,"RBCD","RBC DOMINION SECURITIES"]
[null,null,null,null,null,null,null,null,null,null,null,"RBL","NATWEST (LDN)",null,null,null,null,"RBJ","RBS SECURITIES"]
[null,null,null,null,null,null,null,null,null,null,null,"RBS","ROYAL BANK OF SCOTLAND FIN",null,null,null,null,"RBL","NATWEST (LDN)"]
[null,null,null,null,null,null,null,null,null,null,null,"RBT","ROYAL BANK TRUST",null,null,null,null,"RBS","ROYAL BANK OF SCOTLAND FIN"]
[null,null,null,null,null,null,null,null,null,null,null,"RC","ROBERTSON COLEMAN",null,null,null,null,"RBT","ROYAL BANK TRUST"]
[null,null,null,null,null,null,null,null,null,null,null,"RCA","ROYAL BANK OF CANADA",null,null,null,null,"RC","ROBERTSON COLEMAN"]
[null,null,null,null,null,null,null,null,null,null,null,"RCM","RELIGARE CAPITAL MARKET",null,null,null,null,"RCA","ROYAL BANK OF CANADA"]
[null,null,null,null,null,null,null,null,null,null,null,"RCT","RBC TRUST CO.(OLD)",null,null,null,null,"RCM","RELIGARE CAPITAL MARKET"]
[null,null,null,null,null,null,null,null,null,null,null,"RDI","RBC DEXIA INVESTOR SERVICES",null,null,null,null,"RCT","RBC TRUST CO.(OLD)"]
[null,null,null,null,null,null,null,null,null,null,null,"RED","REDBURN PARTNERS LLP",null,null,null,null,"RDI","RBC DEXIA INVESTOR SERVICES"]
[null,null,null,null,null,null,null,null,null,null,null,"REN","RENAISSANCE CAPITAL LTD",null,null,null,null,"RED","REDBURN PARTNERS LLP"]
[null,null,null,null,null,null,null,null,null,null,null,"REU","REUSCHEL & CO.",null,null,null,null,"REN","RENAISSANCE CAPITAL LTD"]
[null,null,null,null,null,null,null,null,null,null,null,"RF","ROBERT FLEMING",null,null,null,null,"REU","REUSCHEL & CO."]
[null,null,null,null,null,null,null,null,null,null,null,"RGS","RGS",null,null,null,null,"RF","ROBERT FLEMING"]
[null,null,null,null,null,null,null,null,null,null,null,"RHD","RHD BANK BHD",null,null,null,null,"RGS","RGS"]
[null,null,null,null,null,null,null,null,null,null,null,"RHK","RHB BANK",null,null,null,null,"RHD","RHD BANK BHD"]
[null,null,null,null,null,null,null,null,null,null,null,"RHS","RHB INVESTMENT BANK BERHAD",null,null,null,null,"RHK","RHB BANK"]
[null,null,null,null,null,null,null,null,null,null,null,"RIB","RHB ISLAMIC BANK",null,null,null,null,"RHS","RHB INVESTMENT BANK BERHAD"]
[null,null,null,null,null,null,null,null,null,null,null,"RJA","RAYMOND JAMES & ASSOCIATE",null,null,null,null,"RIB","RHB ISLAMIC BANK"]
[null,null,null,null,null,null,null,null,null,null,null,"RJS","RAYMOND JAMES SECURITIES",null,null,null,null,"RJA","RAYMOND JAMES & ASSOCIATE"]
[null,null,null,null,null,null,null,null,null,null,null,"RMS","RENAISSANCE MACRO SECURTIES",null,null,null,null,"RJS","RAYMOND JAMES SECURITIES"]
[null,null,null,null,null,null,null,null,null,null,null,"ROS","RHB OSK SECURITIES",null,null,null,null,"RMS","RENAISSANCE MACRO SECURTIES"]
[null,null,null,null,null,null,null,null,null,null,null,"RRC","ROULSTON RESEACH CORP",null,null,null,null,"ROS","RHB OSK SECURITIES"]
[null,null,null,null,null,null,null,null,null,null,null,"RRE","RREEF AMERICAS",null,null,null,null,"RRC","ROULSTON RESEACH CORP"]
[null,null,null,null,null,null,null,null,null,null,null,"RRI","RRI",null,null,null,null,"RRE","RREEF AMERICAS"]
[null,null,null,null,null,null,null,null,null,null,null,"RS","ROBERTSON STEPHENS & CO",null,null,null,null,"RRI","RRI"]
[null,null,null,null,null,null,null,null,null,null,null,"RSE","R SEELAUS",null,null,null,null,"RS","ROBERTSON STEPHENS & CO"]
[null,null,null,null,null,null,null,null,null,null,null,"RTC","RBC TRUST CO.",null,null,null,null,"RSE","R SEELAUS"]
[null,null,null,null,null,null,null,null,null,null,null,"RVS","REPUBLICA VALORES S.A.",null,null,null,null,"RTC","RBC TRUST CO."]
[null,null,null,null,null,null,null,null,null,null,null,"RWA","ROBERT WOOD,ANZ MACAUGHAN",null,null,null,null,"RVS","REPUBLICA VALORES S.A."]
[null,null,null,null,null,null,null,null,null,null,null,"RWB","ROBERT W. BAIRD & CO.",null,null,null,null,"RWA","ROBERT WOOD,ANZ MACAUGHAN"]
[null,null,null,null,null,null,null,null,null,null,null,"RWC","ROWE & CO",null,null,null,null,"RWB","ROBERT W. BAIRD & CO."]
[null,null,null,null,null,null,null,null,null,null,null,"RWD","R.W,DAY AND COMPANY LTD",null,null,null,null,"RWC","ROWE & CO"]
[null,null,null,null,null,null,null,null,null,null,null,"RWM","RBC WEALTH MANAGEMENT",null,null,null,null,"RWD","R.W,DAY AND COMPANY LTD"]
[null,null,null,null,null,null,null,null,null,null,null,"RWP","R.W.PRESSPRICH & CO",null,null,null,null,"RWM","RBC WEALTH MANAGEMENT"]
[null,null,null,null,null,null,null,null,null,null,null,"RZB","RAIFFEISEN ZENTRALBANK",null,null,null,null,"RWP","R.W.PRESSPRICH & CO"]
[null,null,null,null,null,null,null,null,null,null,null,"S:CIMB","CIMB Bank Berhad",null,null,null,null,"RZB","RAIFFEISEN ZENTRALBANK"]
[null,null,null,null,null,null,null,null,null,null,null,"S:CITI","Citibank Berhad",null,null,null,null,"SA","STUDIO ALBERTINI"]
[null,null,null,null,null,null,null,null,null,null,null,"S:DB","Deutsche Bank (Malaysia) Berhad",null,null,null,null,"SAL","STERNE, AGEE ＆ LEACH"]
[null,null,null,null,null,null,null,null,null,null,null,"S:MBB","Malayan Banking Berhad",null,null,null,null,"SAM","SAMSUNG SECURITIES"]
[null,null,null,null,null,null,null,null,null,null,null,"SA","STUDIO ALBERTINI",null,null,null,null,"SANT","BCO SANTANDER DE NEGOCIOS"]
[null,null,null,null,null,null,null,null,null,null,null,"SAL","STERNE, AGEE ＆ LEACH",null,null,null,null,"SAR","BANK SARASIN"]
[null,null,null,null,null,null,null,null,null,null,null,"SAM","SAMSUNG SECURITIES",null,null,null,null,"SAS","SASSOON"]
[null,null,null,null,null,null,null,null,null,null,null,"SANT","BCO SANTANDER DE NEGOCIOS",null,null,null,null,"SB","CITIGROUP GLOBAL MARKETS"]
[null,null,null,null,null,null,null,null,null,null,null,"SAR","BANK SARASIN",null,null,null,null,"SBB","SBB SECURITIES"]
[null,null,null,null,null,null,null,null,null,null,null,"SAS","SASSOON",null,null,null,null,"SBC","SBCI SECURITIES"]
[null,null,null,null,null,null,null,null,null,null,null,"SB","CITIGROUP GLOBAL MARKETS",null,null,null,null,"SBF","SBCI FINANCE ASIA LTD."]
[null,null,null,null,null,null,null,null,null,null,null,"SBB","SBB SECURITIES",null,null,null,null,"SBG","SBG SECURITIES"]
[null,null,null,null,null,null,null,null,null,null,null,"SBC","SBCI SECURITIES",null,null,null,null,"SBR","SBERBANK CIB (UK) LIMITED"]
[null,null,null,null,null,null,null,null,null,null,null,"SBF","SBCI FINANCE ASIA LTD.",null,null,null,null,"SBT","SBT"]
[null,null,null,null,null,null,null,null,null,null,null,"SBG","SBG SECURITIES",null,null,null,null,"SBW","UBS SECURITIES"]
[null,null,null,null,null,null,null,null,null,null,null,"SBR","SBERBANK CIB (UK) LIMITED",null,null,null,null,"SC","SCOTIA CAPITAL"]
[null,null,null,null,null,null,null,null,null,null,null,"SBT","SBT",null,null,null,null,"SCB","SANFORD C BERNSTEIN"]
[null,null,null,null,null,null,null,null,null,null,null,"SBW","UBS SECURITIES",null,null,null,null,"SCC","SAMCO CAPITAL MARKETS"]
[null,null,null,null,null,null,null,null,null,null,null,"SC","SCOTIA CAPITAL",null,null,null,null,"SCE","SOUTHERN CROSS EQUITIES LTD"]
[null,null,null,null,null,null,null,null,null,null,null,"SCB","SANFORD C BERNSTEIN",null,null,null,null,"SCH","SOUTH CHINA SECURITIES LTD"]
[null,null,null,null,null,null,null,null,null,null,null,"SCC","SAMCO CAPITAL MARKETS",null,null,null,null,"SCI","THE STANFORD COMPANY INC."]
[null,null,null,null,null,null,null,null,null,null,null,"SCE","SOUTHERN CROSS EQUITIES LTD",null,null,null,null,"SCL","SIDOTI & COMPANY"]
[null,null,null,null,null,null,null,null,null,null,null,"SCH","SOUTH CHINA SECURITIES LTD",null,null,null,null,"SCM","STARBOARD CAPITAL MARKETS"]
[null,null,null,null,null,null,null,null,null,null,null,"SCI","THE STANFORD COMPANY INC.",null,null,null,null,"SCO","SCOTIABANK"]
[null,null,null,null,null,null,null,null,null,null,null,"SCL","SIDOTI & COMPANY",null,null,null,null,"SCS","STANDARD CHARTER SECURITIES"]
[null,null,null,null,null,null,null,null,null,null,null,"SCM","STARBOARD CAPITAL MARKETS",null,null,null,null,"SDV","SA SOCIEDAD DE VALORES"]
[null,null,null,null,null,null,null,null,null,null,null,"SCO","SCOTIABANK",null,null,null,null,"SEA","SEAMICO SECURITES"]
[null,null,null,null,null,null,null,null,null,null,null,"SCS","STANDARD CHARTER SECURITIES",null,null,null,null,"SEB","SOCIETE EUROPEENE DE BANQ"]
[null,null,null,null,null,null,null,null,null,null,null,"SDV","SA SOCIEDAD DE VALORES",null,null,null,null,"SEB1","SEB STOCKHOLM"]
[null,null,null,null,null,null,null,null,null,null,null,"SEA","SEAMICO SECURITES",null,null,null,null,"SEG","SEAPORT GROUP SECURITIES LL"]
[null,null,null,null,null,null,null,null,null,null,null,"SEB","SOCIETE EUROPEENE DE BANQ",null,null,null,null,"SEL","SELLIER SA"]
[null,null,null,null,null,null,null,null,null,null,null,"SEB1","SEB STOCKHOLM",null,null,null,null,"SFC","STUART FRANKEL & CO.INC"]
[null,null,null,null,null,null,null,null,null,null,null,"SEG","SEAPORT GROUP SECURITIES LL",null,null,null,null,"SFF","SCOTT & STRINGFELLOW FINANC"]
[null,null,null,null,null,null,null,null,null,null,null,"SEL","SELLIER SA",null,null,null,null,"SGC","SG COWEN SECURITIES CORP"]
[null,null,null,null,null,null,null,null,null,null,null,"SFC","STUART FRANKEL & CO.INC",null,null,null,null,"SGD","SOCIETE BOURSE GILBERT DUPO"]
[null,null,null,null,null,null,null,null,null,null,null,"SFF","SCOTT & STRINGFELLOW FINANC",null,null,null,null,"SGI","SUN GLOBAL INVESTMENTS LTD"]
[null,null,null,null,null,null,null,null,null,null,null,"SGC","SG COWEN SECURITIES CORP",null,null,null,null,"SGM","STATE STREET G MARKETS SG"]
[null,null,null,null,null,null,null,null,null,null,null,"SGD","SOCIETE BOURSE GILBERT DUPO",null,null,null,null,"SGS","SEI GLOBAL SERVICES INC"]
[null,null,null,null,null,null,null,null,null,null,null,"SGI","SUN GLOBAL INVESTMENTS LTD",null,null,null,null,"SGT","SOCIETE GENERALE PRIVATE BA"]
[null,null,null,null,null,null,null,null,null,null,null,"SGM","STATE STREET G MARKETS SG",null,null,null,null,"SHE","SHENYIN WANGUO SECS LTD"]
[null,null,null,null,null,null,null,null,null,null,null,"SGS","SEI GLOBAL SERVICES INC",null,null,null,null,"SHI","SHINSEI BANK"]
[null,null,null,null,null,null,null,null,null,null,null,"SGT","SOCIETE GENERALE PRIVATE BA",null,null,null,null,"SHK","SUN HUNG KAI"]
[null,null,null,null,null,null,null,null,null,null,null,"SHE","SHENYIN WANGUO SECS LTD",null,null,null,null,"SHN","SHINHAN INVESTMENT CORPORAT"]
[null,null,null,null,null,null,null,null,null,null,null,"SHI","SHINSEI BANK",null,null,null,null,"SHO","SHOKO CHUKIN BANK"]
[null,null,null,null,null,null,null,null,null,null,null,"SHK","SUN HUNG KAI",null,null,null,null,"SHR","SCHRODER SECURITIES"]
[null,null,null,null,null,null,null,null,null,null,null,"SHN","SHINHAN INVESTMENT CORPORAT",null,null,null,null,"SHS","SHINSEI SECURITIES"]
[null,null,null,null,null,null,null,null,null,null,null,"SHO","SHOKO CHUKIN BANK",null,null,null,null,"SHU","SHUAA CAPITAL PSC"]
[null,null,null,null,null,null,null,null,null,null,null,"SHR","SCHRODER SECURITIES",null,null,null,null,"SHW","SHAW AND PARTNERS LIMITED"]
[null,null,null,null,null,null,null,null,null,null,null,"SHS","SHINSEI SECURITIES",null,null,null,null,"SIM","SIMMONS AND COMPANY"]
[null,null,null,null,null,null,null,null,null,null,null,"SHU","SHUAA CAPITAL PSC",null,null,null,null,"SIP","SIERRA PACIFIC SECURITIES"]
[null,null,null,null,null,null,null,null,null,null,null,"SHW","SHAW AND PARTNERS LIMITED",null,null,null,null,"SIS","GOOD MORNING SECURITIES"]
[null,null,null,null,null,null,null,null,null,null,null,"SIM","SIMMONS AND COMPANY",null,null,null,null,"SIX","SIX SIS AG"]
[null,null,null,null,null,null,null,null,null,null,null,"SIP","SIERRA PACIFIC SECURITIES",null,null,null,null,"SKA","SKA"]
[null,null,null,null,null,null,null,null,null,null,null,"SIS","GOOD MORNING SECURITIES",null,null,null,null,"SKB","SHINKIN CENTRAL BANK"]
[null,null,null,null,null,null,null,null,null,null,null,"SIX","SIX SIS AG",null,null,null,null,"SKI","IDFC SECURITIES LTD"]
[null,null,null,null,null,null,null,null,null,null,null,"SKA","SKA",null,null,null,null,"SKL","ENSKILDA SEC"]
[null,null,null,null,null,null,null,null,null,null,null,"SKB","SHINKIN CENTRAL BANK",null,null,null,null,"SKS","SHINKIN SECURITIES"]
[null,null,null,null,null,null,null,null,null,null,null,"SKI","IDFC SECURITIES LTD",null,null,null,null,"SKT","SHINKIN TRUST & BANKING"]
[null,null,null,null,null,null,null,null,null,null,null,"SKL","ENSKILDA SEC",null,null,null,null,"SM","SBCI SAVORY MILLN LTD."]
[null,null,null,null,null,null,null,null,null,null,null,"SKS","SHINKIN SECURITIES",null,null,null,null,"SMG","SAMUEL MONTAGU AND CO"]
[null,null,null,null,null,null,null,null,null,null,null,"SKT","SHINKIN TRUST & BANKING",null,null,null,null,"SMI","SCOTIA MCLEOD"]
[null,null,null,null,null,null,null,null,null,null,null,"SM","SBCI SAVORY MILLN LTD.",null,null,null,null,"SMR","SUMRIDGE PARTNERS"]
[null,null,null,null,null,null,null,null,null,null,null,"SMG","SAMUEL MONTAGU AND CO",null,null,null,null,"SMT","SUMMIT SECURITIES GROUP"]
[null,null,null,null,null,null,null,null,null,null,null,"SMI","SCOTIA MCLEOD",null,null,null,null,"SNC","SMITH NEW COURT"]
[null,null,null,null,null,null,null,null,null,null,null,"SMR","SUMRIDGE PARTNERS",null,null,null,null,"SNK","SHINKOU SEC."]
[null,null,null,null,null,null,null,null,null,null,null,"SMT","SUMMIT SECURITIES GROUP",null,null,null,null,"SNO","SMBC NIKKO CAPITAL MARKETS"]
[null,null,null,null,null,null,null,null,null,null,null,"SNC","SMITH NEW COURT",null,null,null,null,"SOC","SOCIETE GENERAL"]
[null,null,null,null,null,null,null,null,null,null,null,"SNK","SHINKOU SEC.",null,null,null,null,"SOG","SOCIETE GENERALE"]
[null,null,null,null,null,null,null,null,null,null,null,"SNO","SMBC NIKKO CAPITAL MARKETS",null,null,null,null,"SON","SANDLER, ONEILL & PARTNERS"]
[null,null,null,null,null,null,null,null,null,null,null,"SOC","SOCIETE GENERAL",null,null,null,null,"SOP","SAL OPPENHEIM JR. & CIE"]
[null,null,null,null,null,null,null,null,null,null,null,"SOG","SOCIETE GENERALE",null,null,null,null,"SOW","SOUTHWEST SECURITIES"]
[null,null,null,null,null,null,null,null,null,null,null,"SON","SANDLER, ONEILL & PARTNERS",null,null,null,null,"SPA","SPARK CAPITAL"]
[null,null,null,null,null,null,null,null,null,null,null,"SOP","SAL OPPENHEIM JR. & CIE",null,null,null,null,"SPL","SPEAR LEEDS&KELLOGG"]
[null,null,null,null,null,null,null,null,null,null,null,"SOW","SOUTHWEST SECURITIES",null,null,null,null,"SPS","SEAPORT SECURITIES"]
[null,null,null,null,null,null,null,null,null,null,null,"SPA","SPARK CAPITAL",null,null,null,null,"SRA","SAMUEL A. RAMIREZ&CO INC"]
[null,null,null,null,null,null,null,null,null,null,null,"SPL","SPEAR LEEDS&KELLOGG",null,null,null,null,"SRB","SANTANDER INVESTMENT BOLSA"]
[null,null,null,null,null,null,null,null,null,null,null,"SPS","SEAPORT SECURITIES",null,null,null,null,"SRG","SURUGA BANK"]
[null,null,null,null,null,null,null,null,null,null,null,"SRA","SAMUEL A. RAMIREZ&CO INC",null,null,null,null,"SRS","SANTANDER INV SECURITIES"]
[null,null,null,null,null,null,null,null,null,null,null,"SRB","SANTANDER INVESTMENT BOLSA",null,null,null,null,"SSB","STATE STREET BANK"]
[null,null,null,null,null,null,null,null,null,null,null,"SRG","SURUGA BANK",null,null,null,null,"SSC","SSC"]
[null,null,null,null,null,null,null,null,null,null,null,"SRS","SANTANDER INV SECURITIES",null,null,null,null,"SSG","STATE STREET GCM CLEARING"]
[null,null,null,null,null,null,null,null,null,null,null,"SSB","STATE STREET BANK",null,null,null,null,"SSS","STANDARD CHARTERED SAADIQ"]
[null,null,null,null,null,null,null,null,null,null,null,"SSC","SSC",null,null,null,null,"SST","STATE STREET TRUST AND BANK"]
[null,null,null,null,null,null,null,null,null,null,null,"SSG","STATE STREET GCM CLEARING",null,null,null,null,"ST","STRAUSS TURNBULL"]
[null,null,null,null,null,null,null,null,null,null,null,"SSS","STANDARD CHARTERED SAADIQ",null,null,null,null,"STA","STANDARD CHARTERED BANK"]
[null,null,null,null,null,null,null,null,null,null,null,"SST","STATE STREET TRUST AND BANK",null,null,null,null,"STB","SUMITOMO MITSUI TRUST BANK"]
[null,null,null,null,null,null,null,null,null,null,null,"ST","STRAUSS TURNBULL",null,null,null,null,"STD","STANDARD NEW YORK"]
[null,null,null,null,null,null,null,null,null,null,null,"STA","STANDARD CHARTERED BANK",null,null,null,null,"STE","STEPHENS INC"]
[null,null,null,null,null,null,null,null,null,null,null,"STB","SUMITOMO MITSUI TRUST BANK",null,null,null,null,"STI","STIFEL NICOLAUS"]
[null,null,null,null,null,null,null,null,null,null,null,"STD","STANDARD NEW YORK",null,null,null,null,"STR","SUNTRUST ROBINSON HUMPHREY"]
[null,null,null,null,null,null,null,null,null,null,null,"STE","STEPHENS INC",null,null,null,null,"STS","SUMITOMO TRUST SECURITIES"]
[null,null,null,null,null,null,null,null,null,null,null,"STI","STIFEL NICOLAUS",null,null,null,null,"STX","STX FIXED INCOME"]
[null,null,null,null,null,null,null,null,null,null,null,"STR","SUNTRUST ROBINSON HUMPHREY",null,null,null,null,"SUB","SUNTRUST BANK"]
[null,null,null,null,null,null,null,null,null,null,null,"STS","SUMITOMO TRUST SECURITIES",null,null,null,null,"SUD","SUEDWESTBANK AG"]
[null,null,null,null,null,null,null,null,null,null,null,"STX","STX FIXED INCOME",null,null,null,null,"SUM","MITSUI SUMITOMO BANK"]
[null,null,null,null,null,null,null,null,null,null,null,"SUB","SUNTRUST BANK",null,null,null,null,"SUN","SUNTRUST INVESTMENT SERVICE"]
[null,null,null,null,null,null,null,null,null,null,null,"SUD","SUEDWESTBANK AG",null,null,null,null,"SUS","SUSQUEHANNA"]
[null,null,null,null,null,null,null,null,null,null,null,"SUM","MITSUI SUMITOMO BANK",null,null,null,null,"SV","SVENSKA INTERNATIONAL EQU"]
[null,null,null,null,null,null,null,null,null,null,null,"SUN","SUNTRUST INVESTMENT SERVICE",null,null,null,null,"SVC","STURDIVANT & CO."]
[null,null,null,null,null,null,null,null,null,null,null,"SUS","SUSQUEHANNA",null,null,null,null,"SVH","SVENSKA HANDELSBANKEN"]
[null,null,null,null,null,null,null,null,null,null,null,"SV","SVENSKA INTERNATIONAL EQU",null,null,null,null,"SW","SHENYIN WANGUO SEC"]
[null,null,null,null,null,null,null,null,null,null,null,"SVC","STURDIVANT & CO.",null,null,null,null,"SWB","SWEDBANK"]
[null,null,null,null,null,null,null,null,null,null,null,"SVH","SVENSKA HANDELSBANKEN",null,null,null,null,"SWD","SWEDBANK MARKETS"]
[null,null,null,null,null,null,null,null,null,null,null,"SW","SHENYIN WANGUO SEC",null,null,null,null,"SWS","SHANGHAI SHENYIN SECURITIES"]
[null,null,null,null,null,null,null,null,null,null,null,"SWB","SWEDBANK",null,null,null,null,"SY","SUNKYONG SECURITIES"]
[null,null,null,null,null,null,null,null,null,null,null,"SWD","SWEDBANK MARKETS",null,null,null,null,"SYD","SYD BANK"]
[null,null,null,null,null,null,null,null,null,null,null,"SWS","SHANGHAI SHENYIN SECURITIES",null,null,null,null,"SYO","SANKYO SEC"]
[null,null,null,null,null,null,null,null,null,null,null,"SY","SUNKYONG SECURITIES",null,null,null,null,"SZK","THE SHIZUOKA BANK,LTD."]
[null,null,null,null,null,null,null,null,null,null,null,"SYD","SYD BANK",null,null,null,null,"TAC","TACHIBANA SECURITIES"]
[null,null,null,null,null,null,null,null,null,null,null,"SYO","SANKYO SEC",null,null,null,null,"TAG","TELSEY ADVISORY GROUP"]
[null,null,null,null,null,null,null,null,null,null,null,"SZK","THE SHIZUOKA BANK,LTD.",null,null,null,null,"TAK","TAKAGI SEC"]
[null,null,null,null,null,null,null,null,null,null,null,"TAC","TACHIBANA SECURITIES",null,null,null,null,"TBH","TIMBER HILL LLC"]
[null,null,null,null,null,null,null,null,null,null,null,"TAG","TELSEY ADVISORY GROUP",null,null,null,null,"TBN","TBN"]
[null,null,null,null,null,null,null,null,null,null,null,"TAK","TAKAGI SEC",null,null,null,null,"TBS","UFJ TSUBASA SEC."]
[null,null,null,null,null,null,null,null,null,null,null,"TBH","TIMBER HILL LLC",null,null,null,null,"TCB","TRUST&CUSTODY SERVICES BANK"]
[null,null,null,null,null,null,null,null,null,null,null,"TBN","TBN",null,null,null,null,"TCM","TOKAI CAPITAL MARKETS"]
[null,null,null,null,null,null,null,null,null,null,null,"TBS","UFJ TSUBASA SEC.",null,null,null,null,"TDB","TORONTO DOMINION"]
[null,null,null,null,null,null,null,null,null,null,null,"TCB","TRUST&CUSTODY SERVICES BANK",null,null,null,null,"TDE","TD SECURITIES"]
[null,null,null,null,null,null,null,null,null,null,null,"TCM","TOKAI CAPITAL MARKETS",null,null,null,null,"TDI","TROIKA DIALOG"]
[null,null,null,null,null,null,null,null,null,null,null,"TDB","TORONTO DOMINION",null,null,null,null,"TDS","TORONTO DOMINION SECURITIES"]
[null,null,null,null,null,null,null,null,null,null,null,"TDE","TD SECURITIES",null,null,null,null,"TEB","TEB YATIRIM MENKUL DEGERLER"]
[null,null,null,null,null,null,null,null,null,null,null,"TDI","TROIKA DIALOG",null,null,null,null,"TFB","TAIPEI FUBON COMMERCIAL BAN"]
[null,null,null,null,null,null,null,null,null,null,null,"TDS","TORONTO DOMINION SECURITIES",null,null,null,null,"TFS","TOYOTA FINANCIAL SERVICE SE"]
[null,null,null,null,null,null,null,null,null,null,null,"TEB","TEB YATIRIM MENKUL DEGERLER",null,null,null,null,"THO","T HOARE & CO"]
[null,null,null,null,null,null,null,null,null,null,null,"TFB","TAIPEI FUBON COMMERCIAL BAN",null,null,null,null,"TIC","TICONDEROGA SECURITIES"]
[null,null,null,null,null,null,null,null,null,null,null,"TFS","TOYOTA FINANCIAL SERVICE SE",null,null,null,null,"TIR","TIEDEMANN INTERNATIONAL R"]
[null,null,null,null,null,null,null,null,null,null,null,"THO","T HOARE & CO",null,null,null,null,"TKS","TOKAI TOKYO SECURITIES"]
[null,null,null,null,null,null,null,null,null,null,null,"TIC","TICONDEROGA SECURITIES",null,null,null,null,"TKY","TOKYO TANSHI"]
[null,null,null,null,null,null,null,null,null,null,null,"TIR","TIEDEMANN INTERNATIONAL R",null,null,null,null,"TM","MITSUBISHI-TOKYO UFJ INTL"]
[null,null,null,null,null,null,null,null,null,null,null,"TKS","TOKAI TOKYO SECURITIES",null,null,null,null,"TMS","THAMESWAY SECURITIES"]
[null,null,null,null,null,null,null,null,null,null,null,"TKY","TOKYO TANSHI",null,null,null,null,"TMU","TOKYO MITSUBISHI INT"]
[null,null,null,null,null,null,null,null,null,null,null,"TM","MITSUBISHI-TOKYO UFJ INTL",null,null,null,null,"TOB","TAKE OVER BID"]
[null,null,null,null,null,null,null,null,null,null,null,"TMS","THAMESWAY SECURITIES",null,null,null,null,"TPB","THIRD PARTY BROKER"]
[null,null,null,null,null,null,null,null,null,null,null,"TMU","TOKYO MITSUBISHI INT",null,null,null,null,"TRO","TROIKA DIALOG"]
[null,null,null,null,null,null,null,null,null,null,null,"TOB","TAKE OVER BID",null,null,null,null,"TSE","TOKYO STOCK EXCHANGE"]
[null,null,null,null,null,null,null,null,null,null,null,"TPB","THIRD PARTY BROKER",null,null,null,null,"TW","TAIWAN SECURITIES"]
[null,null,null,null,null,null,null,null,null,null,null,"TRO","TROIKA DIALOG",null,null,null,null,"TY","TONG YANG SECURITIES"]
[null,null,null,null,null,null,null,null,null,null,null,"TSE","TOKYO STOCK EXCHANGE",null,null,null,null,"UB","UBS AG"]
[null,null,null,null,null,null,null,null,null,null,null,"TW","TAIWAN SECURITIES",null,null,null,null,"UBA","UNICREDIT BANK AUSTRIA AG"]
[null,null,null,null,null,null,null,null,null,null,null,"TY","TONG YANG SECURITIES",null,null,null,null,"UBB","UOB BANK"]
[null,null,null,null,null,null,null,null,null,null,null,"UB","UBS AG",null,null,null,null,"UBN","US BANK NA"]
[null,null,null,null,null,null,null,null,null,null,null,"UBA","UNICREDIT BANK AUSTRIA AG",null,null,null,null,"UBS","UBS WARBURG"]
[null,null,null,null,null,null,null,null,null,null,null,"UBB","UOB BANK",null,null,null,null,"UBT","UBS TRUST & BANKING"]
[null,null,null,null,null,null,null,null,null,null,null,"UBN","US BANK NA",null,null,null,null,"UEY","UEDA YAGITANSHI"]
[null,null,null,null,null,null,null,null,null,null,null,"UBS","UBS WARBURG",null,null,null,null,"UII","UNICREDITO ITALIANO SPA"]
[null,null,null,null,null,null,null,null,null,null,null,"UBT","UBS TRUST & BANKING",null,null,null,null,"UIS","UIS"]
[null,null,null,null,null,null,null,null,null,null,null,"UEY","UEDA YAGITANSHI",null,null,null,null,"UNB","UNIBANK"]
[null,null,null,null,null,null,null,null,null,null,null,"UII","UNICREDITO ITALIANO SPA",null,null,null,null,"UOB","UOB KAY HIAN PVT LTD"]
[null,null,null,null,null,null,null,null,null,null,null,"UIS","UIS",null,null,null,null,"USB","US BANCORP PIPER JEFFRAY"]
[null,null,null,null,null,null,null,null,null,null,null,"UNB","UNIBANK",null,null,null,null,"USI","US BANCORP INVESTMENTS INC"]
[null,null,null,null,null,null,null,null,null,null,null,"UOB","UOB KAY HIAN PVT LTD",null,null,null,null,"UTS","UTSUMIYA SEC"]
[null,null,null,null,null,null,null,null,null,null,null,"USB","US BANCORP PIPER JEFFRAY",null,null,null,null,"VBC","VICKERS BALLAS + CO (S)"]
[null,null,null,null,null,null,null,null,null,null,null,"USI","US BANCORP INVESTMENTS INC",null,null,null,null,"VCG","VCG SECURITIES"]
[null,null,null,null,null,null,null,null,null,null,null,"UTS","UTSUMIYA SEC",null,null,null,null,"VCS","VIET CAPITAL SECURITIES"]
[null,null,null,null,null,null,null,null,null,null,null,"VBC","VICKERS BALLAS + CO (S)",null,null,null,null,"VER","VEREINS UND WESTBANK AG"]
[null,null,null,null,null,null,null,null,null,null,null,"VCG","VCG SECURITIES",null,null,null,null,"VIS","VINING SPARKS"]
[null,null,null,null,null,null,null,null,null,null,null,"VCS","VIET CAPITAL SECURITIES",null,null,null,null,"VTB","VTB CAPITAL"]
[null,null,null,null,null,null,null,null,null,null,null,"VER","VEREINS UND WESTBANK AG",null,null,null,null,"VTF","VIRTU FINANCIAL"]
[null,null,null,null,null,null,null,null,null,null,null,"VIS","VINING SPARKS",null,null,null,null,"WAC","WOOD AND COMPANY"]
[null,null,null,null,null,null,null,null,null,null,null,"VTB","VTB CAPITAL",null,null,null,null,"WB","WILLIAM BLAIR & CO."]
[null,null,null,null,null,null,null,null,null,null,null,"VTF","VIRTU FINANCIAL",null,null,null,null,"WBS","WEDBUSH SECURITIES"]
[null,null,null,null,null,null,null,null,null,null,null,"WAC","WOOD AND COMPANY",null,null,null,null,"WCB","WACHOVIA BANK"]
[null,null,null,null,null,null,null,null,null,null,null,"WB","WILLIAM BLAIR & CO.",null,null,null,null,"WCV","WACHOVIA SECURITIES"]
[null,null,null,null,null,null,null,null,null,null,null,"WBS","WEDBUSH SECURITIES",null,null,null,null,"WDL","WEST DEUTSCHE LANDE BANK"]
[null,null,null,null,null,null,null,null,null,null,null,"WCB","WACHOVIA BANK",null,null,null,null,"WE","WEEDEN AND CO"]
[null,null,null,null,null,null,null,null,null,null,null,"WCV","WACHOVIA SECURITIES",null,null,null,null,"WES","WESTON GROUP"]
[null,null,null,null,null,null,null,null,null,null,null,"WDL","WEST DEUTSCHE LANDE BANK",null,null,null,null,"WFB","WELLS FRAGO BANK,N.A."]
[null,null,null,null,null,null,null,null,null,null,null,"WE","WEEDEN AND CO",null,null,null,null,"WFL","WINTERFLOOD SECURITIES"]
[null,null,null,null,null,null,null,null,null,null,null,"WES","WESTON GROUP",null,null,null,null,"WFS","WHEAT, FIRST SECURITIES INC"]
[null,null,null,null,null,null,null,null,null,null,null,"WFB","WELLS FRAGO BANK,N.A.",null,null,null,null,"WGC","CIBC WORLD MARKETS INC."]
[null,null,null,null,null,null,null,null,null,null,null,"WFL","WINTERFLOOD SECURITIES",null,null,null,null,"WHC","WILLIAMS DE BROE HILL CHAPL"]
[null,null,null,null,null,null,null,null,null,null,null,"WFS","WHEAT, FIRST SECURITIES INC",null,null,null,null,"WHP","WHP SECURITIES"]
[null,null,null,null,null,null,null,null,null,null,null,"WGC","CIBC WORLD MARKETS INC.",null,null,null,null,"WIC","INDOSUEZ W.I. CARR SECURITI"]
[null,null,null,null,null,null,null,null,null,null,null,"WHC","WILLIAMS DE BROE HILL CHAPL",null,null,null,null,"WIL","WILLIAM NOALL LIMITED."]
[null,null,null,null,null,null,null,null,null,null,null,"WHP","WHP SECURITIES",null,null,null,null,"WIN","WINSTON WONG"]
[null,null,null,null,null,null,null,null,null,null,null,"WIC","INDOSUEZ W.I. CARR SECURITI",null,null,null,null,"WIS","WILSON HTM"]
[null,null,null,null,null,null,null,null,null,null,null,"WIL","WILLIAM NOALL LIMITED.",null,null,null,null,"WJB","WJB CAPITAL GROUP INC"]
[null,null,null,null,null,null,null,null,null,null,null,"WIN","WINSTON WONG",null,null,null,null,"WLB","WESTLB SECURITIES PACIFIC"]
[null,null,null,null,null,null,null,null,null,null,null,"WIS","WILSON HTM",null,null,null,null,"WLF","WELLS FARGO SECURITIES"]
[null,null,null,null,null,null,null,null,null,null,null,"WJB","WJB CAPITAL GROUP INC",null,null,null,null,"WLL","THE WILLIAMS CAPITAL"]
[null,null,null,null,null,null,null,null,null,null,null,"WLB","WESTLB SECURITIES PACIFIC",null,null,null,null,"WLS","WUNDERLICH SECURITIES"]
[null,null,null,null,null,null,null,null,null,null,null,"WLF","WELLS FARGO SECURITIES",null,null,null,null,"WOL","WOLFGANG STEUBING AG"]
[null,null,null,null,null,null,null,null,null,null,null,"WLL","THE WILLIAMS CAPITAL",null,null,null,null,"WOO","NH INVESTMENT & SECURITIES"]
[null,null,null,null,null,null,null,null,null,null,null,"WLS","WUNDERLICH SECURITIES",null,null,null,null,"WOR","WORLD-NICHIEI SEC"]
[null,null,null,null,null,null,null,null,null,null,null,"WOL","WOLFGANG STEUBING AG",null,null,null,null,"WPC","WESTPAC BANKING"]
[null,null,null,null,null,null,null,null,null,null,null,"WOO","NH INVESTMENT & SECURITIES",null,null,null,null,"WPG","WEISS, PECK & GREER"]
[null,null,null,null,null,null,null,null,null,null,null,"WOR","WORLD-NICHIEI SEC",null,null,null,null,"WRL","WRLAZARD & LAIDLAW INC"]
[null,null,null,null,null,null,null,null,null,null,null,"WPC","WESTPAC BANKING",null,null,null,null,"WS","WERTHIEM SCHRODER"]
[null,null,null,null,null,null,null,null,null,null,null,"WPG","WEISS, PECK & GREER",null,null,null,null,"WSA","WALL STREET ACCESS"]
[null,null,null,null,null,null,null,null,null,null,null,"WRL","WRLAZARD & LAIDLAW INC",null,null,null,null,"WST","WST"]
[null,null,null,null,null,null,null,null,null,null,null,"WS","WERTHIEM SCHRODER",null,null,null,null,"WTC","WTC LONDON"]
[null,null,null,null,null,null,null,null,null,null,null,"WSA","WALL STREET ACCESS",null,null,null,null,"WTL","WILLIAMS TRADING, LLC"]
[null,null,null,null,null,null,null,null,null,null,null,"WST","WST",null,null,null,null,"WTR","WOLFE TRAHAN SECURITIES"]
[null,null,null,null,null,null,null,null,null,null,null,"WTC","WTC LONDON",null,null,null,null,"XPI","XP INVESTIMENTOS CCTVM SA"]
[null,null,null,null,null,null,null,null,null,null,null,"WTL","WILLIAMS TRADING, LLC",null,null,null,null,"YAA","YAMAWA SEC"]
[null,null,null,null,null,null,null,null,null,null,null,"WTR","WOLFE TRAHAN SECURITIES",null,null,null,null,"YAB","YAMABUN SEC"]
[null,null,null,null,null,null,null,null,null,null,null,"XPI","XP INVESTIMENTOS CCTVM SA",null,null,null,null,"YAK","YAMAKA SECURITIES"]
[null,null,null,null,null,null,null,null,null,null,null,"YAA","YAMAWA SEC",null,null,null,null,"YCP","YUANTA CORE PACIFIC SEC"]
[null,null,null,null,null,null,null,null,null,null,null,"YAB","YAMABUN SEC",null,null,null,null,"YES","YES BANK LIMITED"]
[null,null,null,null,null,null,null,null,null,null,null,"YAK","YAMAKA SECURITIES",null,null,null,null,"YG","PACIFIC AMERICAN SEC, LLC"]
[null,null,null,null,null,null,null,null,null,null,null,"YCP","YUANTA CORE PACIFIC SEC",null,null,null,null,"YHT","YAHATA SECURITIES"]
[null,null,null,null,null,null,null,null,null,null,null,"YES","YES BANK LIMITED",null,null,null,null,"YOK","BANK OF YOKOHAMA"]
[null,null,null,null,null,null,null,null,null,null,null,"YG","PACIFIC AMERICAN SEC, LLC",null,null,null,null,"YTS","YASUDA SIN SECURITIES"]
[null,null,null,null,null,null,null,null,null,null,null,"YHT","YAHATA SECURITIES",null,null,null,null,"YUA","YUANTA SECURITIES"]
[null,null,null,null,null,null,null,null,null,null,null,"YOK","BANK OF YOKOHAMA",null,null,null,null,"ZAC","ZACKS & COMPANY"]
[null,null,null,null,null,null,null,null,null,null,null,"YTS","YASUDA SIN SECURITIES",null,null,null,null,"ZAL","ZALIK SECURITIES"]
[null,null,null,null,null,null,null,null,null,null,null,"YUA","YUANTA SECURITIES",null,null,null,null,"ZEN","ZENSHINREN BANK"]
[null,null,null,null,null,null,null,null,null,null,null,"ZAC","ZACKS & COMPANY"]
[null,null,null,null,null,null,null,null,null,null,null,"ZAL","ZALIK SECURITIES"]
[null,null,null,null,null,null,null,null,null,null,null,"ZEN","ZENSHINREN BANK"]

{"sheet":"Sheet1","index":5,"n_rows":0,"n_cols":0,"rows_kept":0,"cut":false,"hidden":false,"merged":[]}